﻿Department Family,Entity,Date,Expense Type,Expense Area,Supplier,Transaction Number,AP Amount,Supplier Postcode
Department of Health,NHS Sheffield CCG,31/10/2021,Cont Care-Physical Disab (65+),CHC ADULT FULLY FUNDED,ABBEYCARE NURSING,38356091,59238.52,S35 9YY
Department of Health,NHS Sheffield CCG,31/10/2021,C&M-GMS IT Comm Servs -GP Practices,PRIMARY CARE IT,ACCURX LTD,38380223,38054.86,N1 5AA
Department of Health,NHS Sheffield CCG,31/10/2021,C&M-GMS IT Comm Servs -GP Practices,PRIMARY CARE IT,ACCURX LTD,38380236,-38054.88,N1 5AA
Department of Health,NHS Sheffield CCG,31/10/2021,C&M-GMS IT Comm Servs -GP Practices,PRIMARY CARE IT,ACCURX LTD,38380248,30814.28,N1 5AA
Department of Health,NHS Sheffield CCG,31/10/2021,CLINICAL AND MEDICAL GOODS & SERVICES - HOSPITAL DISCHARGE PROGRAMME,COMMUNITY SERVICES,AGE UK SHEFFIELD,38501837,30000,S2 3FG
Department of Health,NHS Sheffield CCG,31/10/2021,Cont Care-Physical Disab (<65),CHC ADULT FULLY FUNDED,ALPINE HEALTH CARE,38480121,27656.96,S36 1AD
Department of Health,NHS Sheffield CCG,31/10/2021,Hcare Srv Rec Fdtn Trust-Contract Baseline,ACUTE COMMISSIONING,BARNSLEY HOSPITAL NHS FOUNDATION TRUST,38467799,147025,S75 2EP
Department of Health,NHS Sheffield CCG,31/10/2021,Participation Fees,BEREAVEMENT SERVICE,BARNSLEY HOSPITAL NHS FOUNDATION TRUST,38574039,234956,S75 2EP
Department of Health,NHS Sheffield CCG,31/10/2021,Participation Fees,BEREAVEMENT SERVICE,BARNSLEY HOSPITAL NHS FOUNDATION TRUST,38649134,-123771,S75 2EP
Department of Health,NHS Sheffield CCG,31/10/2021,C&M-PMS Contract Value,PRC DELEGATED CO-COMMISSIONING,BARNSLEY ROAD SURGERY,38426514,21464.94,S5 0QJ
Department of Health,NHS Sheffield CCG,31/10/2021,C&M-PMS DES Learn Dsblty Hlth Chk,PRC DELEGATED CO-COMMISSIONING,BARNSLEY ROAD SURGERY,38426514,420,S5 0QJ
Department of Health,NHS Sheffield CCG,31/10/2021,C&M-PMS Funding Differential Review,PRC DELEGATED CO-COMMISSIONING,BARNSLEY ROAD SURGERY,38426514,506.44,S5 0QJ
Department of Health,NHS Sheffield CCG,31/10/2021,C&M-PMS LONG COVID ES,PRC DELEGATED CO-COMMISSIONING,BARNSLEY ROAD SURGERY,38426514,408.11,S5 0QJ
Department of Health,NHS Sheffield CCG,31/10/2021,C&M-PMS PCN DES Participation,PRC DELEGATED CO-COMMISSIONING,BARNSLEY ROAD SURGERY,38426514,387.62,S5 0QJ
Department of Health,NHS Sheffield CCG,31/10/2021,C&M-PMS PCO Other,PRC DELEGATED CO-COMMISSIONING,BARNSLEY ROAD SURGERY,38426514,1344,S5 0QJ
Department of Health,NHS Sheffield CCG,31/10/2021,C&M-PMS Prem Notional Rent,PRC DELEGATED CO-COMMISSIONING,BARNSLEY ROAD SURGERY,38426514,2751.37,S5 0QJ
Department of Health,NHS Sheffield CCG,31/10/2021,C&M-PMS Prem Rates,PRC DELEGATED CO-COMMISSIONING,BARNSLEY ROAD SURGERY,38426514,674,S5 0QJ
Department of Health,NHS Sheffield CCG,31/10/2021,C&M-PMS QOF Aspiration,PRC DELEGATED CO-COMMISSIONING,BARNSLEY ROAD SURGERY,38426514,2443.92,S5 0QJ
Department of Health,NHS Sheffield CCG,31/10/2021,C&M-GMS DES Learn Dsblty Hlth Chk,PRC DELEGATED CO-COMMISSIONING,BASLOW ROAD & SHOREHAM STREET SURGERIES,38612400,140,S17 4DR
Department of Health,NHS Sheffield CCG,31/10/2021,C&M-GMS DES Minor Surgery,PRC DELEGATED CO-COMMISSIONING,BASLOW ROAD & SHOREHAM STREET SURGERIES,38612400,400,S17 4DR
Department of Health,NHS Sheffield CCG,31/10/2021,C&M-GMS Global Sum,PRC DELEGATED CO-COMMISSIONING,BASLOW ROAD & SHOREHAM STREET SURGERIES,38612400,102867.88,S17 4DR
Department of Health,NHS Sheffield CCG,31/10/2021,C&M-GMS LONG COVID ES,PRC DELEGATED CO-COMMISSIONING,BASLOW ROAD & SHOREHAM STREET SURGERIES,38612400,2036.55,S17 4DR
Department of Health,NHS Sheffield CCG,31/10/2021,C&M-GMS PCN DES Participation,PRC DELEGATED CO-COMMISSIONING,BASLOW ROAD & SHOREHAM STREET SURGERIES,38612400,1957.06,S17 4DR
Department of Health,NHS Sheffield CCG,31/10/2021,C&M-GMS PCO Other,PRC DELEGATED CO-COMMISSIONING,BASLOW ROAD & SHOREHAM STREET SURGERIES,38612400,760.5,S17 4DR
Department of Health,NHS Sheffield CCG,31/10/2021,C&M-GMS Prem Healthcentre Rent,PRC DELEGATED CO-COMMISSIONING,BASLOW ROAD & SHOREHAM STREET SURGERIES,38612400,15641.73,S17 4DR
Department of Health,NHS Sheffield CCG,31/10/2021,C&M-GMS Prem Notional Rent,PRC DELEGATED CO-COMMISSIONING,BASLOW ROAD & SHOREHAM STREET SURGERIES,38612400,8222.71,S17 4DR
Department of Health,NHS Sheffield CCG,31/10/2021,C&M-GMS Prem Rates,PRC DELEGATED CO-COMMISSIONING,BASLOW ROAD & SHOREHAM STREET SURGERIES,38612400,15301.2,S17 4DR
Department of Health,NHS Sheffield CCG,31/10/2021,C&M-GMS QOF Aspiration,PRC DELEGATED CO-COMMISSIONING,BASLOW ROAD & SHOREHAM STREET SURGERIES,38612400,10432.69,S17 4DR
Department of Health,NHS Sheffield CCG,31/10/2021,Cont Care-Physical Disab (65+),CHC ADULT FULLY FUNDED,BC SHEFFIELD LTD,38355768,42784.37,S9 2TJ
Department of Health,NHS Sheffield CCG,31/10/2021,C&M-GMS DES Minor Surgery,PRC DELEGATED CO-COMMISSIONING,BEAUCHIEF MEDICAL PRACTICE,38612401,655,S8 0BJ
Department of Health,NHS Sheffield CCG,31/10/2021,C&M-GMS Global Sum,PRC DELEGATED CO-COMMISSIONING,BEAUCHIEF MEDICAL PRACTICE,38612401,53195.73,S8 0BJ
Department of Health,NHS Sheffield CCG,31/10/2021,C&M-GMS LONG COVID ES,PRC DELEGATED CO-COMMISSIONING,BEAUCHIEF MEDICAL PRACTICE,38612401,1175.99,S8 0BJ
Department of Health,NHS Sheffield CCG,31/10/2021,C&M-GMS PCN DES Participation,PRC DELEGATED CO-COMMISSIONING,BEAUCHIEF MEDICAL PRACTICE,38612401,450.19,S8 0BJ
Department of Health,NHS Sheffield CCG,31/10/2021,C&M-GMS PCO Other,PRC DELEGATED CO-COMMISSIONING,BEAUCHIEF MEDICAL PRACTICE,38612401,499.2,S8 0BJ
Department of Health,NHS Sheffield CCG,31/10/2021,C&M-GMS Prem Notional Rent,PRC DELEGATED CO-COMMISSIONING,BEAUCHIEF MEDICAL PRACTICE,38612401,3770.84,S8 0BJ
Department of Health,NHS Sheffield CCG,31/10/2021,C&M-GMS Prem Rates,PRC DELEGATED CO-COMMISSIONING,BEAUCHIEF MEDICAL PRACTICE,38612401,1409,S8 0BJ
Department of Health,NHS Sheffield CCG,31/10/2021,C&M-GMS Prem Water Rates,PRC DELEGATED CO-COMMISSIONING,BEAUCHIEF MEDICAL PRACTICE,38612401,193.5,S8 0BJ
Department of Health,NHS Sheffield CCG,31/10/2021,C&M-GMS QOF Aspiration,PRC DELEGATED CO-COMMISSIONING,BEAUCHIEF MEDICAL PRACTICE,38612401,5567.74,S8 0BJ
Department of Health,NHS Sheffield CCG,31/10/2021,Cont Care-Learning Disab(<65),CHC ADULT FULLY FUNDED,BESPOKE CARE AND SUPPORT LTD,38556677,41406.55,S73 0HQ
Department of Health,NHS Sheffield CCG,31/10/2021,Clinical&Medical-Independent Sector,Mental Health Services - S117 Mental Health,BESPOKE CARE AND SUPPORT LTD,38464305,33441.06,S73 0HQ
Department of Health,NHS Sheffield CCG,31/10/2021,C&M-PMS Contract Value,PRC DELEGATED CO-COMMISSIONING,BIRLEY HEALTH CENTRE,38426529,68102.45,S12 3BP
Department of Health,NHS Sheffield CCG,31/10/2021,C&M-PMS LONG COVID ES,PRC DELEGATED CO-COMMISSIONING,BIRLEY HEALTH CENTRE,38426529,1413.27,S12 3BP
Department of Health,NHS Sheffield CCG,31/10/2021,C&M-PMS PCN DES Participation,PRC DELEGATED CO-COMMISSIONING,BIRLEY HEALTH CENTRE,38426529,1224.59,S12 3BP
Department of Health,NHS Sheffield CCG,31/10/2021,C&M-PMS Prem Notional Rent,PRC DELEGATED CO-COMMISSIONING,BIRLEY HEALTH CENTRE,38426529,7600.58,S12 3BP
Department of Health,NHS Sheffield CCG,31/10/2021,C&M-PMS Prem Rates,PRC DELEGATED CO-COMMISSIONING,BIRLEY HEALTH CENTRE,38426529,895,S12 3BP
Department of Health,NHS Sheffield CCG,31/10/2021,C&M-PMS QOF Aspiration,PRC DELEGATED CO-COMMISSIONING,BIRLEY HEALTH CENTRE,38426529,8434.07,S12 3BP
Department of Health,NHS Sheffield CCG,31/10/2021,Clinical&Medical-Independent Sector,ACUTE COMMISSIONING,BMI HEALTHCARE LTD,38300221,51688.33,SK3 0XN
Department of Health,NHS Sheffield CCG,31/10/2021,Cont Care-Physical Disab (<65),CHC ADULT FULLY FUNDED,BONDCARE,38480157,35080.29,NW4 4EF
Department of Health,NHS Sheffield CCG,31/10/2021,Cont Care-Funded Nursing Care Allow,FUNDED NURSING CARE,BONDCARE,38480095,41432.8,NW4 4EF
Department of Health,NHS Sheffield CCG,31/10/2021,C&M-GMS DES Minor Surgery,PRC DELEGATED CO-COMMISSIONING,BROOMHILL SURGERY,38612404,80,S10 5BU
Department of Health,NHS Sheffield CCG,31/10/2021,C&M-GMS Global Sum,PRC DELEGATED CO-COMMISSIONING,BROOMHILL SURGERY,38612404,69043.11,S10 5BU
Department of Health,NHS Sheffield CCG,31/10/2021,C&M-GMS LONG COVID ES,PRC DELEGATED CO-COMMISSIONING,BROOMHILL SURGERY,38612404,1611.29,S10 5BU
Department of Health,NHS Sheffield CCG,31/10/2021,C&M-GMS PCN DES Participation,PRC DELEGATED CO-COMMISSIONING,BROOMHILL SURGERY,38612404,1322.15,S10 5BU
Department of Health,NHS Sheffield CCG,31/10/2021,C&M-GMS Prem Cost Rent,PRC DELEGATED CO-COMMISSIONING,BROOMHILL SURGERY,38612404,3309.67,S10 5BU
Department of Health,NHS Sheffield CCG,31/10/2021,C&M-GMS Prem Notional Rent,PRC DELEGATED CO-COMMISSIONING,BROOMHILL SURGERY,38612404,2612.5,S10 5BU
Department of Health,NHS Sheffield CCG,31/10/2021,C&M-GMS QOF Aspiration,PRC DELEGATED CO-COMMISSIONING,BROOMHILL SURGERY,38612404,7198.65,S10 5BU
Department of Health,NHS Sheffield CCG,31/10/2021,C&M-GMS GP Statutory Levy,PRC DELEGATED CO-COMMISSIONING,BROOMHILL SURGERY,38612405,-338.98,S10 5BU
Department of Health,NHS Sheffield CCG,31/10/2021,C&M-GMS DES Learn Dsblty Hlth Chk,PRC DELEGATED CO-COMMISSIONING,BUCHANAN ROAD SURGERY,38612406,280,S5 8AL
Department of Health,NHS Sheffield CCG,31/10/2021,C&M-GMS Global Sum,PRC DELEGATED CO-COMMISSIONING,BUCHANAN ROAD SURGERY,38612406,37694.11,S5 8AL
Department of Health,NHS Sheffield CCG,31/10/2021,C&M-GMS LONG COVID ES,PRC DELEGATED CO-COMMISSIONING,BUCHANAN ROAD SURGERY,38612406,769.04,S5 8AL
Department of Health,NHS Sheffield CCG,31/10/2021,C&M-GMS PCN DES Participation,PRC DELEGATED CO-COMMISSIONING,BUCHANAN ROAD SURGERY,38612406,727.12,S5 8AL
Department of Health,NHS Sheffield CCG,31/10/2021,C&M-GMS Prem Notional Rent,PRC DELEGATED CO-COMMISSIONING,BUCHANAN ROAD SURGERY,38612406,2595.83,S5 8AL
Department of Health,NHS Sheffield CCG,31/10/2021,C&M-GMS Prem Rates,PRC DELEGATED CO-COMMISSIONING,BUCHANAN ROAD SURGERY,38612406,6288,S5 8AL
Department of Health,NHS Sheffield CCG,31/10/2021,C&M-GMS QOF Aspiration,PRC DELEGATED CO-COMMISSIONING,BUCHANAN ROAD SURGERY,38612406,4716.42,S5 8AL
Department of Health,NHS Sheffield CCG,31/10/2021,Cont Care-Physical Disab (<65),CHC ADULT FULLY FUNDED,BUPA CARE HOMES,38480128,27109.01,LS18 4UP
Department of Health,NHS Sheffield CCG,31/10/2021,C&M-PMS Contract Value,PRC DELEGATED CO-COMMISSIONING,BURNCROSS SURGERY,38426526,127123.64,S35 1RN
Department of Health,NHS Sheffield CCG,31/10/2021,C&M-PMS Funding Differential Review,PRC DELEGATED CO-COMMISSIONING,BURNCROSS SURGERY,38426526,2746.32,S35 1RN
Department of Health,NHS Sheffield CCG,31/10/2021,C&M-PMS LONG COVID ES,PRC DELEGATED CO-COMMISSIONING,BURNCROSS SURGERY,38426526,2473.33,S35 1RN
Department of Health,NHS Sheffield CCG,31/10/2021,C&M-PMS PCN DES Participation,PRC DELEGATED CO-COMMISSIONING,BURNCROSS SURGERY,38426526,2296.43,S35 1RN
Department of Health,NHS Sheffield CCG,31/10/2021,C&M-PMS Prem Notional Rent,PRC DELEGATED CO-COMMISSIONING,BURNCROSS SURGERY,38426526,14919.67,S35 1RN
Department of Health,NHS Sheffield CCG,31/10/2021,C&M-PMS QOF Aspiration,PRC DELEGATED CO-COMMISSIONING,BURNCROSS SURGERY,38426526,16606.07,S35 1RN
Department of Health,NHS Sheffield CCG,31/10/2021,C&M-PMS Contract Value,PRC DELEGATED CO-COMMISSIONING,BURNGREAVE SURGERY,38426525,59337.84,S3 9DA
Department of Health,NHS Sheffield CCG,31/10/2021,C&M-PMS DES Learn Dsblty Hlth Chk,PRC DELEGATED CO-COMMISSIONING,BURNGREAVE SURGERY,38426525,560,S3 9DA
Department of Health,NHS Sheffield CCG,31/10/2021,C&M-PMS LONG COVID ES,PRC DELEGATED CO-COMMISSIONING,BURNGREAVE SURGERY,38426525,1136.25,S3 9DA
Department of Health,NHS Sheffield CCG,31/10/2021,C&M-PMS Out of Hours Opt Outs,PRC DELEGATED CO-COMMISSIONING,BURNGREAVE SURGERY,38426525,23.69,S3 9DA
Department of Health,NHS Sheffield CCG,31/10/2021,C&M-PMS PCN DES Participation,PRC DELEGATED CO-COMMISSIONING,BURNGREAVE SURGERY,38426525,1072.06,S3 9DA
Department of Health,NHS Sheffield CCG,31/10/2021,C&M-PMS Prem Notional Rent,PRC DELEGATED CO-COMMISSIONING,BURNGREAVE SURGERY,38426525,6622.92,S3 9DA
Department of Health,NHS Sheffield CCG,31/10/2021,C&M-PMS Prem Rates,PRC DELEGATED CO-COMMISSIONING,BURNGREAVE SURGERY,38426525,2340,S3 9DA
Department of Health,NHS Sheffield CCG,31/10/2021,C&M-PMS QOF Aspiration,PRC DELEGATED CO-COMMISSIONING,BURNGREAVE SURGERY,38426525,5671.9,S3 9DA
Department of Health,NHS Sheffield CCG,31/10/2021,C&M-GMS DES Minor Surgery,PRC DELEGATED CO-COMMISSIONING,CARTERKNOWLE & DORE MEDICAL PRACTICE,38612410,600,S7 2DW
Department of Health,NHS Sheffield CCG,31/10/2021,C&M-GMS Global Sum,PRC DELEGATED CO-COMMISSIONING,CARTERKNOWLE & DORE MEDICAL PRACTICE,38612410,95620.98,S7 2DW
Department of Health,NHS Sheffield CCG,31/10/2021,C&M-GMS LONG COVID ES,PRC DELEGATED CO-COMMISSIONING,CARTERKNOWLE & DORE MEDICAL PRACTICE,38612410,2089.97,S7 2DW
Department of Health,NHS Sheffield CCG,31/10/2021,C&M-GMS PCN DES Participation,PRC DELEGATED CO-COMMISSIONING,CARTERKNOWLE & DORE MEDICAL PRACTICE,38612410,1765.5,S7 2DW
Department of Health,NHS Sheffield CCG,31/10/2021,C&M-GMS PCO Other,PRC DELEGATED CO-COMMISSIONING,CARTERKNOWLE & DORE MEDICAL PRACTICE,38612410,773.4,S7 2DW
Department of Health,NHS Sheffield CCG,31/10/2021,C&M-GMS Prem Notional Rent,PRC DELEGATED CO-COMMISSIONING,CARTERKNOWLE & DORE MEDICAL PRACTICE,38612410,7855,S7 2DW
Department of Health,NHS Sheffield CCG,31/10/2021,C&M-GMS QOF Aspiration,PRC DELEGATED CO-COMMISSIONING,CARTERKNOWLE & DORE MEDICAL PRACTICE,38612410,11516.91,S7 2DW
Department of Health,NHS Sheffield CCG,31/10/2021,C&M-GMS DES Minor Surgery,PRC DELEGATED CO-COMMISSIONING,CHARNOCK HEALTH PRIMARY CARE CENTRE,38612407,560,S12 3GH
Department of Health,NHS Sheffield CCG,31/10/2021,C&M-GMS Global Sum,PRC DELEGATED CO-COMMISSIONING,CHARNOCK HEALTH PRIMARY CARE CENTRE,38612407,46782.02,S12 3GH
Department of Health,NHS Sheffield CCG,31/10/2021,C&M-GMS LONG COVID ES,PRC DELEGATED CO-COMMISSIONING,CHARNOCK HEALTH PRIMARY CARE CENTRE,38612407,920.91,S12 3GH
Department of Health,NHS Sheffield CCG,31/10/2021,C&M-GMS PCN DES Participation,PRC DELEGATED CO-COMMISSIONING,CHARNOCK HEALTH PRIMARY CARE CENTRE,38612407,884.41,S12 3GH
Department of Health,NHS Sheffield CCG,31/10/2021,C&M-GMS PCO Other,PRC DELEGATED CO-COMMISSIONING,CHARNOCK HEALTH PRIMARY CARE CENTRE,38612407,369.2,S12 3GH
Department of Health,NHS Sheffield CCG,31/10/2021,C&M-GMS Prem Actual Rent,PRC DELEGATED CO-COMMISSIONING,CHARNOCK HEALTH PRIMARY CARE CENTRE,38612407,20400,S12 3GH
Department of Health,NHS Sheffield CCG,31/10/2021,C&M-GMS Prem Notional Rent,PRC DELEGATED CO-COMMISSIONING,CHARNOCK HEALTH PRIMARY CARE CENTRE,38612407,340,S12 3GH
Department of Health,NHS Sheffield CCG,31/10/2021,C&M-GMS Prem Rates,PRC DELEGATED CO-COMMISSIONING,CHARNOCK HEALTH PRIMARY CARE CENTRE,38612407,1160,S12 3GH
Department of Health,NHS Sheffield CCG,31/10/2021,C&M-GMS Prem Water Rates,PRC DELEGATED CO-COMMISSIONING,CHARNOCK HEALTH PRIMARY CARE CENTRE,38612407,133.15,S12 3GH
Department of Health,NHS Sheffield CCG,31/10/2021,C&M-GMS QOF Aspiration,PRC DELEGATED CO-COMMISSIONING,CHARNOCK HEALTH PRIMARY CARE CENTRE,38612407,5385.73,S12 3GH
Department of Health,NHS Sheffield CCG,31/10/2021,Hcare Srv Rec Fdtn Trust-Contract Baseline,ACUTE COMMISSIONING,CHESTERFIELD ROYAL HOSPITAL NHS FOUNDATION TRUST,38467801,414284,S44 5BL
Department of Health,NHS Sheffield CCG,31/10/2021,Clinical&Medical-Independent Sector,ACUTE COMMISSIONING,CLAREMONT HOSPITAL,38425284,-37112.79,S10 5UB
Department of Health,NHS Sheffield CCG,31/10/2021,C&M-APMS Contract Value,PRC DELEGATED CO-COMMISSIONING,CLOVER CITY PRACTICE,38426482,33671.9,S9 4QH
Department of Health,NHS Sheffield CCG,31/10/2021,C&M-APMS LONG COVID ES,PRC DELEGATED CO-COMMISSIONING,CLOVER CITY PRACTICE,38426482,827.25,S9 4QH
Department of Health,NHS Sheffield CCG,31/10/2021,C&M-APMS PCN DES Participation,PRC DELEGATED CO-COMMISSIONING,CLOVER CITY PRACTICE,38426482,592.77,S9 4QH
Department of Health,NHS Sheffield CCG,31/10/2021,C&M-APMS QOF Aspiration,PRC DELEGATED CO-COMMISSIONING,CLOVER CITY PRACTICE,38426482,2087.76,S9 4QH
Department of Health,NHS Sheffield CCG,31/10/2021,C&M-APMS LES Translation Fees,LOCAL ENHANCED SERVICES,CLOVER GROUP PRACTICE,38426611,70750,S9 4QH
Department of Health,NHS Sheffield CCG,31/10/2021,C&M-APMS Contract Value,PRC DELEGATED CO-COMMISSIONING,CLOVER GROUP PRACTICE,38426527,126289.47,S9 4QH
Department of Health,NHS Sheffield CCG,31/10/2021,C&M-APMS LONG COVID ES,PRC DELEGATED CO-COMMISSIONING,CLOVER GROUP PRACTICE,38426527,2481.41,S9 4QH
Department of Health,NHS Sheffield CCG,31/10/2021,C&M-APMS OOH Opt Outs,PRC DELEGATED CO-COMMISSIONING,CLOVER GROUP PRACTICE,38426527,692.85,S9 4QH
Department of Health,NHS Sheffield CCG,31/10/2021,C&M-APMS PCN DES Participation,PRC DELEGATED CO-COMMISSIONING,CLOVER GROUP PRACTICE,38426527,2290.04,S9 4QH
Department of Health,NHS Sheffield CCG,31/10/2021,C&M-APMS PCO Other,PRC DELEGATED CO-COMMISSIONING,CLOVER GROUP PRACTICE,38426527,9551,S9 4QH
Department of Health,NHS Sheffield CCG,31/10/2021,C&M-APMS Prem Actual Rent,PRC DELEGATED CO-COMMISSIONING,CLOVER GROUP PRACTICE,38426527,5169.68,S9 4QH
Department of Health,NHS Sheffield CCG,31/10/2021,C&M-APMS Prem Healthcentre Rent,PRC DELEGATED CO-COMMISSIONING,CLOVER GROUP PRACTICE,38426527,51020.3,S9 4QH
Department of Health,NHS Sheffield CCG,31/10/2021,C&M-APMS Prem Notional Rent,PRC DELEGATED CO-COMMISSIONING,CLOVER GROUP PRACTICE,38426527,2804.17,S9 4QH
Department of Health,NHS Sheffield CCG,31/10/2021,C&M-APMS QOF Aspiration,PRC DELEGATED CO-COMMISSIONING,CLOVER GROUP PRACTICE,38426527,9965.6,S9 4QH
Department of Health,NHS Sheffield CCG,31/10/2021,C&M-APMS Contract Value,PRC DELEGATED CO-COMMISSIONING,CLOVER GROUP PRACTICE,38426528,-15668.62,S9 4QH
Department of Health,NHS Sheffield CCG,31/10/2021,C&M-APMS OOH Opt Outs,PRC DELEGATED CO-COMMISSIONING,CLOVER GROUP PRACTICE,38426528,-5957.96,S9 4QH
Department of Health,NHS Sheffield CCG,31/10/2021,C&M-APMS Prem Healthcentre Rent,PRC DELEGATED CO-COMMISSIONING,CLOVER GROUP PRACTICE,38426528,-301.67,S9 4QH
Department of Health,NHS Sheffield CCG,31/10/2021,C&M-PMS GP Statutory Levy,PRC DELEGATED CO-COMMISSIONING,CLOVER GROUP PRACTICE,38426528,-528.15,S9 4QH
Department of Health,NHS Sheffield CCG,31/10/2021,Voids and Subsidies,PRC DELEGATED CO-COMMISSIONING,COMMUNITY HEALTH PARTNERSHIPS LTD,38300214,39478.29,M1 3LD
Department of Health,NHS Sheffield CCG,31/10/2021,Voids and Subsidies,RECHARGES NHS PROPERTY SERVICES LTD,COMMUNITY HEALTH PARTNERSHIPS LTD,38300214,112844.21,M1 3LD
Department of Health,NHS Sheffield CCG,31/10/2021,Cont Care-Physical Disab (<65),CHC ADULT FULLY FUNDED,COUNTRY COURT CARE LTD,38480119,34068.08,S5 6UU
Department of Health,NHS Sheffield CCG,31/10/2021,C&M-GMS DES Learn Dsblty Hlth Chk,PRC DELEGATED CO-COMMISSIONING,CROOKES PRACTICE,38612414,140,S10 1GN
Department of Health,NHS Sheffield CCG,31/10/2021,C&M-GMS DES Minor Surgery,PRC DELEGATED CO-COMMISSIONING,CROOKES PRACTICE,38612414,255,S10 1GN
Department of Health,NHS Sheffield CCG,31/10/2021,C&M-GMS Global Sum,PRC DELEGATED CO-COMMISSIONING,CROOKES PRACTICE,38612414,57335.94,S10 1GN
Department of Health,NHS Sheffield CCG,31/10/2021,C&M-GMS LONG COVID ES,PRC DELEGATED CO-COMMISSIONING,CROOKES PRACTICE,38612414,1392.16,S10 1GN
Department of Health,NHS Sheffield CCG,31/10/2021,C&M-GMS PCN DES Participation,PRC DELEGATED CO-COMMISSIONING,CROOKES PRACTICE,38612414,1077.54,S10 1GN
Department of Health,NHS Sheffield CCG,31/10/2021,C&M-GMS PCO Other,PRC DELEGATED CO-COMMISSIONING,CROOKES PRACTICE,38612414,532.1,S10 1GN
Department of Health,NHS Sheffield CCG,31/10/2021,C&M-GMS Prem Notional Rent,PRC DELEGATED CO-COMMISSIONING,CROOKES PRACTICE,38612414,4006.59,S10 1GN
Department of Health,NHS Sheffield CCG,31/10/2021,C&M-GMS Prem Rates,PRC DELEGATED CO-COMMISSIONING,CROOKES PRACTICE,38612414,1534,S10 1GN
Department of Health,NHS Sheffield CCG,31/10/2021,C&M-GMS QOF Aspiration,PRC DELEGATED CO-COMMISSIONING,CROOKES PRACTICE,38612414,5404.47,S10 1GN
Department of Health,NHS Sheffield CCG,31/10/2021,Voids and Subsidies,RECHARGES NHS PROPERTY SERVICES LTD,DARNALL WELL BEING,38408036,36910.68,S9 4QH
Department of Health,NHS Sheffield CCG,31/10/2021,C&M-PMS Contract Value,PRC DELEGATED CO-COMMISSIONING,DEEPCAR MEDICAL CENTRE,38426537,43351.63,S36 2RA
Department of Health,NHS Sheffield CCG,31/10/2021,C&M-PMS LONG COVID ES,PRC DELEGATED CO-COMMISSIONING,DEEPCAR MEDICAL CENTRE,38426537,871.93,S36 2RA
Department of Health,NHS Sheffield CCG,31/10/2021,C&M-PMS Out of Hours Opt Outs,PRC DELEGATED CO-COMMISSIONING,DEEPCAR MEDICAL CENTRE,38426537,23,S36 2RA
Department of Health,NHS Sheffield CCG,31/10/2021,C&M-PMS PCN DES Participation,PRC DELEGATED CO-COMMISSIONING,DEEPCAR MEDICAL CENTRE,38426537,784.44,S36 2RA
Department of Health,NHS Sheffield CCG,31/10/2021,C&M-PMS PCO Locum Sickness,PRC DELEGATED CO-COMMISSIONING,DEEPCAR MEDICAL CENTRE,38426537,11370,S36 2RA
Department of Health,NHS Sheffield CCG,31/10/2021,C&M-PMS Prem Healthcentre Rent,PRC DELEGATED CO-COMMISSIONING,DEEPCAR MEDICAL CENTRE,38426537,31188.15,S36 2RA
Department of Health,NHS Sheffield CCG,31/10/2021,C&M-PMS QOF Aspiration,PRC DELEGATED CO-COMMISSIONING,DEEPCAR MEDICAL CENTRE,38426537,4646.77,S36 2RA
Department of Health,NHS Sheffield CCG,31/10/2021,C&M-GMS Global Sum,PRC DELEGATED CO-COMMISSIONING,DEVONSHIRE GREEN MEDICAL CENTRE,38612418,52377.01,S3 7SF
Department of Health,NHS Sheffield CCG,31/10/2021,C&M-GMS LONG COVID ES,PRC DELEGATED CO-COMMISSIONING,DEVONSHIRE GREEN MEDICAL CENTRE,38612418,1180.77,S3 7SF
Department of Health,NHS Sheffield CCG,31/10/2021,C&M-GMS PCN DES Participation,PRC DELEGATED CO-COMMISSIONING,DEVONSHIRE GREEN MEDICAL CENTRE,38612418,936.47,S3 7SF
Department of Health,NHS Sheffield CCG,31/10/2021,C&M-GMS Prem Notional Rent,PRC DELEGATED CO-COMMISSIONING,DEVONSHIRE GREEN MEDICAL CENTRE,38612418,5987.5,S3 7SF
Department of Health,NHS Sheffield CCG,31/10/2021,C&M-GMS Prem Rates,PRC DELEGATED CO-COMMISSIONING,DEVONSHIRE GREEN MEDICAL CENTRE,38612418,778,S3 7SF
Department of Health,NHS Sheffield CCG,31/10/2021,C&M-GMS QOF Aspiration,PRC DELEGATED CO-COMMISSIONING,DEVONSHIRE GREEN MEDICAL CENTRE,38612418,5473.95,S3 7SF
Department of Health,NHS Sheffield CCG,31/10/2021,Hcare Srv Rec Fdtn Trust-Contract Baseline,ACUTE COMMISSIONING,DONCASTER AND BASSETLAW HOSPITALS NHS FOUNDATION TRUST,38467803,89471,WF3 1WE
Department of Health,NHS Sheffield CCG,31/10/2021,Participation Fees,BEREAVEMENT SERVICE,DONCASTER AND BASSETLAW HOSPITALS NHS FOUNDATION TRUST,38300209,65015,WF3 1WE
Department of Health,NHS Sheffield CCG,31/10/2021,Participation Fees,BEREAVEMENT SERVICE,DONCASTER AND BASSETLAW HOSPITALS NHS FOUNDATION TRUST,38425252,857287,WF3 1WE
Department of Health,NHS Sheffield CCG,31/10/2021,C&M-PMS Contract Value,PRC DELEGATED CO-COMMISSIONING,DOVERCOURT SURGERY,38426540,79972.1,S2 5FX
Department of Health,NHS Sheffield CCG,31/10/2021,C&M-PMS LONG COVID ES,PRC DELEGATED CO-COMMISSIONING,DOVERCOURT SURGERY,38426540,1449.53,S2 5FX
Department of Health,NHS Sheffield CCG,31/10/2021,C&M-PMS Out of Hours Opt Outs,PRC DELEGATED CO-COMMISSIONING,DOVERCOURT SURGERY,38426540,11.75,S2 5FX
Department of Health,NHS Sheffield CCG,31/10/2021,C&M-PMS PCN DES Participation,PRC DELEGATED CO-COMMISSIONING,DOVERCOURT SURGERY,38426540,1436.25,S2 5FX
Department of Health,NHS Sheffield CCG,31/10/2021,C&M-PMS PCO Other,PRC DELEGATED CO-COMMISSIONING,DOVERCOURT SURGERY,38426540,552,S2 5FX
Department of Health,NHS Sheffield CCG,31/10/2021,C&M-PMS Prem Actual Rent,PRC DELEGATED CO-COMMISSIONING,DOVERCOURT SURGERY,38426540,14108.33,S2 5FX
Department of Health,NHS Sheffield CCG,31/10/2021,C&M-PMS Prem Notional Rent,PRC DELEGATED CO-COMMISSIONING,DOVERCOURT SURGERY,38426540,2158.33,S2 5FX
Department of Health,NHS Sheffield CCG,31/10/2021,C&M-PMS Prem Water Rates,PRC DELEGATED CO-COMMISSIONING,DOVERCOURT SURGERY,38426540,123.38,S2 5FX
Department of Health,NHS Sheffield CCG,31/10/2021,C&M-PMS QOF Aspiration,PRC DELEGATED CO-COMMISSIONING,DOVERCOURT SURGERY,38426540,8804.83,S2 5FX
Department of Health,NHS Sheffield CCG,31/10/2021,C&M-PMS Contract Value,PRC DELEGATED CO-COMMISSIONING,DR MEHROTRA & PARTNER,38426536,26192.99,S9 5DH
Department of Health,NHS Sheffield CCG,31/10/2021,C&M-PMS Funding Differential Review,PRC DELEGATED CO-COMMISSIONING,DR MEHROTRA & PARTNER,38426536,520.47,S9 5DH
Department of Health,NHS Sheffield CCG,31/10/2021,C&M-PMS LONG COVID ES,PRC DELEGATED CO-COMMISSIONING,DR MEHROTRA & PARTNER,38426536,502.25,S9 5DH
Department of Health,NHS Sheffield CCG,31/10/2021,C&M-PMS PCN DES Participation,PRC DELEGATED CO-COMMISSIONING,DR MEHROTRA & PARTNER,38426536,457.08,S9 5DH
Department of Health,NHS Sheffield CCG,31/10/2021,C&M-PMS Prem Notional Rent,PRC DELEGATED CO-COMMISSIONING,DR MEHROTRA & PARTNER,38426536,5157.29,S9 5DH
Department of Health,NHS Sheffield CCG,31/10/2021,C&M-PMS QOF Aspiration,PRC DELEGATED CO-COMMISSIONING,DR MEHROTRA & PARTNER,38426536,2925.04,S9 5DH
Department of Health,NHS Sheffield CCG,31/10/2021,C&M-PMS Contract Value,PRC DELEGATED CO-COMMISSIONING,DR MILNER & PARTNERS,38407086,-1174.09,S6 4JQ
Department of Health,NHS Sheffield CCG,31/10/2021,C&M-PMS GP Statutory Levy,PRC DELEGATED CO-COMMISSIONING,DR MILNER & PARTNERS,38407086,-375.17,S6 4JQ
Department of Health,NHS Sheffield CCG,31/10/2021,C&M-PMS Out of Hours Opt Outs,PRC DELEGATED CO-COMMISSIONING,DR MILNER & PARTNERS,38407086,-3802.9,S6 4JQ
Department of Health,NHS Sheffield CCG,31/10/2021,C&M-PMS Prem Notional Rent,PRC DELEGATED CO-COMMISSIONING,DR MILNER & PARTNERS,38407086,-11382,S6 4JQ
Department of Health,NHS Sheffield CCG,31/10/2021,C&M-PMS Contract Value,PRC DELEGATED CO-COMMISSIONING,DR MILNER & PARTNERS,38426539,80655.86,S6 4JQ
Department of Health,NHS Sheffield CCG,31/10/2021,C&M-PMS LONG COVID ES,PRC DELEGATED CO-COMMISSIONING,DR MILNER & PARTNERS,38426539,1768.44,S6 4JQ
Department of Health,NHS Sheffield CCG,31/10/2021,C&M-PMS Out of Hours Opt Outs,PRC DELEGATED CO-COMMISSIONING,DR MILNER & PARTNERS,38426539,35.09,S6 4JQ
Department of Health,NHS Sheffield CCG,31/10/2021,C&M-PMS PCN DES Participation,PRC DELEGATED CO-COMMISSIONING,DR MILNER & PARTNERS,38426539,1456.05,S6 4JQ
Department of Health,NHS Sheffield CCG,31/10/2021,C&M-PMS Prem Actual Rent,PRC DELEGATED CO-COMMISSIONING,DR MILNER & PARTNERS,38426539,11382,S6 4JQ
Department of Health,NHS Sheffield CCG,31/10/2021,C&M-PMS Prem Notional Rent,PRC DELEGATED CO-COMMISSIONING,DR MILNER & PARTNERS,38426539,15996.59,S6 4JQ
Department of Health,NHS Sheffield CCG,31/10/2021,C&M-PMS Prem Rates,PRC DELEGATED CO-COMMISSIONING,DR MILNER & PARTNERS,38426539,1944,S6 4JQ
Department of Health,NHS Sheffield CCG,31/10/2021,C&M-PMS Prem Water Rates,PRC DELEGATED CO-COMMISSIONING,DR MILNER & PARTNERS,38426539,1004.02,S6 4JQ
Department of Health,NHS Sheffield CCG,31/10/2021,C&M-PMS QOF Aspiration,PRC DELEGATED CO-COMMISSIONING,DR MILNER & PARTNERS,38426539,7550.33,S6 4JQ
Department of Health,NHS Sheffield CCG,31/10/2021,C&M-GMS DES Minor Surgery,PRC DELEGATED CO-COMMISSIONING,DUKE MEDICAL CENTRE,38612412,400,S2 2TD
Department of Health,NHS Sheffield CCG,31/10/2021,C&M-GMS Global Sum,PRC DELEGATED CO-COMMISSIONING,DUKE MEDICAL CENTRE,38612412,67527.72,S2 2TD
Department of Health,NHS Sheffield CCG,31/10/2021,C&M-GMS LONG COVID ES,PRC DELEGATED CO-COMMISSIONING,DUKE MEDICAL CENTRE,38612412,1234.52,S2 2TD
Department of Health,NHS Sheffield CCG,31/10/2021,C&M-GMS PCN DES Participation,PRC DELEGATED CO-COMMISSIONING,DUKE MEDICAL CENTRE,38612412,1180.97,S2 2TD
Department of Health,NHS Sheffield CCG,31/10/2021,C&M-GMS PCO Other,PRC DELEGATED CO-COMMISSIONING,DUKE MEDICAL CENTRE,38612412,477.6,S2 2TD
Department of Health,NHS Sheffield CCG,31/10/2021,C&M-GMS Prem Notional Rent,PRC DELEGATED CO-COMMISSIONING,DUKE MEDICAL CENTRE,38612412,5721.67,S2 2TD
Department of Health,NHS Sheffield CCG,31/10/2021,C&M-GMS Prem Water Rates,PRC DELEGATED CO-COMMISSIONING,DUKE MEDICAL CENTRE,38612412,292.5,S2 2TD
Department of Health,NHS Sheffield CCG,31/10/2021,C&M-GMS QOF Aspiration,PRC DELEGATED CO-COMMISSIONING,DUKE MEDICAL CENTRE,38612412,6200.05,S2 2TD
Department of Health,NHS Sheffield CCG,31/10/2021,C&M-PMS Contract Value,PRC DELEGATED CO-COMMISSIONING,DYKES HALL MEDICAL CENTRE,38407081,-1382.65,S6 4GQ
Department of Health,NHS Sheffield CCG,31/10/2021,C&M-PMS GP Statutory Levy,PRC DELEGATED CO-COMMISSIONING,DYKES HALL MEDICAL CENTRE,38407081,-324.52,S6 4GQ
Department of Health,NHS Sheffield CCG,31/10/2021,C&M-PMS Out of Hours Opt Outs,PRC DELEGATED CO-COMMISSIONING,DYKES HALL MEDICAL CENTRE,38407081,-3499.83,S6 4GQ
Department of Health,NHS Sheffield CCG,31/10/2021,C&M-PMS PCN DES Clinical Director,PRC DELEGATED CO-COMMISSIONING,DYKES HALL MEDICAL CENTRE,38407081,-2176.24,S6 4GQ
Department of Health,NHS Sheffield CCG,31/10/2021,C&M- PCN DES Nursing Associate,PRC DELEGATED CO-COMMISSIONING,DYKES HALL MEDICAL CENTRE,38426534,4699.53,S6 4GQ
Department of Health,NHS Sheffield CCG,31/10/2021,C&M-PCN DES PHARMACY TECHNICIANS,PRC DELEGATED CO-COMMISSIONING,DYKES HALL MEDICAL CENTRE,38426534,3009.5,S6 4GQ
Department of Health,NHS Sheffield CCG,31/10/2021,C&M-PMS Contract Value,PRC DELEGATED CO-COMMISSIONING,DYKES HALL MEDICAL CENTRE,38426534,74345.31,S6 4GQ
Department of Health,NHS Sheffield CCG,31/10/2021,C&M-PMS DES Extended Hours Access,PRC DELEGATED CO-COMMISSIONING,DYKES HALL MEDICAL CENTRE,38426534,4281.12,S6 4GQ
Department of Health,NHS Sheffield CCG,31/10/2021,C&M-PMS DES Learn Dsblty Hlth Chk,PRC DELEGATED CO-COMMISSIONING,DYKES HALL MEDICAL CENTRE,38426534,280,S6 4GQ
Department of Health,NHS Sheffield CCG,31/10/2021,C&M-PMS Funding Differential Review,PRC DELEGATED CO-COMMISSIONING,DYKES HALL MEDICAL CENTRE,38426534,1473.36,S6 4GQ
Department of Health,NHS Sheffield CCG,31/10/2021,C&M-PMS LONG COVID ES,PRC DELEGATED CO-COMMISSIONING,DYKES HALL MEDICAL CENTRE,38426534,1557.37,S6 4GQ
Department of Health,NHS Sheffield CCG,31/10/2021,C&M-PMS Out of Hours Opt Outs,PRC DELEGATED CO-COMMISSIONING,DYKES HALL MEDICAL CENTRE,38426534,46.88,S6 4GQ
Department of Health,NHS Sheffield CCG,31/10/2021,C&M-PMS PCN DES Clin Pharmacist,PRC DELEGATED CO-COMMISSIONING,DYKES HALL MEDICAL CENTRE,38426534,16257.77,S6 4GQ
Department of Health,NHS Sheffield CCG,31/10/2021,C&M-PMS PCN DES Clinical Director,PRC DELEGATED CO-COMMISSIONING,DYKES HALL MEDICAL CENTRE,38426534,2188.13,S6 4GQ
Department of Health,NHS Sheffield CCG,31/10/2021,C&M-PMS PCN DES PCN support,PRC DELEGATED CO-COMMISSIONING,DYKES HALL MEDICAL CENTRE,38426534,4459.5,S6 4GQ
Department of Health,NHS Sheffield CCG,31/10/2021,C&M-PMS PCN DES Participation,PRC DELEGATED CO-COMMISSIONING,DYKES HALL MEDICAL CENTRE,38426534,1345.01,S6 4GQ
Department of Health,NHS Sheffield CCG,31/10/2021,C&M-PMS PCN DES Physiotherapist,PRC DELEGATED CO-COMMISSIONING,DYKES HALL MEDICAL CENTRE,38426534,6494.84,S6 4GQ
Department of Health,NHS Sheffield CCG,31/10/2021,C&M-PMS PCN DES Soc Prescribing,PRC DELEGATED CO-COMMISSIONING,DYKES HALL MEDICAL CENTRE,38426534,2949,S6 4GQ
Department of Health,NHS Sheffield CCG,31/10/2021,C&M-PMS Prem Notional Rent,PRC DELEGATED CO-COMMISSIONING,DYKES HALL MEDICAL CENTRE,38426534,5527.08,S6 4GQ
Department of Health,NHS Sheffield CCG,31/10/2021,C&M-PMS Prem Rates,PRC DELEGATED CO-COMMISSIONING,DYKES HALL MEDICAL CENTRE,38426534,910,S6 4GQ
Department of Health,NHS Sheffield CCG,31/10/2021,C&M-PMS Prem Water Rates,PRC DELEGATED CO-COMMISSIONING,DYKES HALL MEDICAL CENTRE,38426534,160,S6 4GQ
Department of Health,NHS Sheffield CCG,31/10/2021,C&M-PMS QOF Aspiration,PRC DELEGATED CO-COMMISSIONING,DYKES HALL MEDICAL CENTRE,38426534,9390.15,S6 4GQ
Department of Health,NHS Sheffield CCG,31/10/2021,C&M-PMS Contract Value,PRC DELEGATED CO-COMMISSIONING,EAST BANK MEDICAL CENTRE,38426535,53053.37,S2 2AG
Department of Health,NHS Sheffield CCG,31/10/2021,C&M-PMS DES Learn Dsblty Hlth Chk,PRC DELEGATED CO-COMMISSIONING,EAST BANK MEDICAL CENTRE,38426535,560,S2 2AG
Department of Health,NHS Sheffield CCG,31/10/2021,C&M-PMS LONG COVID ES,PRC DELEGATED CO-COMMISSIONING,EAST BANK MEDICAL CENTRE,38426535,1010.6,S2 2AG
Department of Health,NHS Sheffield CCG,31/10/2021,C&M-PMS PCN DES Participation,PRC DELEGATED CO-COMMISSIONING,EAST BANK MEDICAL CENTRE,38426535,945.64,S2 2AG
Department of Health,NHS Sheffield CCG,31/10/2021,C&M-PMS PCO Locum Sickness,PRC DELEGATED CO-COMMISSIONING,EAST BANK MEDICAL CENTRE,38426535,16740.02,S2 2AG
Department of Health,NHS Sheffield CCG,31/10/2021,C&M-PMS Prem Notional Rent,PRC DELEGATED CO-COMMISSIONING,EAST BANK MEDICAL CENTRE,38426535,10583.33,S2 2AG
Department of Health,NHS Sheffield CCG,31/10/2021,C&M-PMS Prem Rates,PRC DELEGATED CO-COMMISSIONING,EAST BANK MEDICAL CENTRE,38426535,2065,S2 2AG
Department of Health,NHS Sheffield CCG,31/10/2021,C&M-PMS QOF Aspiration,PRC DELEGATED CO-COMMISSIONING,EAST BANK MEDICAL CENTRE,38426535,5744.23,S2 2AG
Department of Health,NHS Sheffield CCG,31/10/2021,C&M-GMS DES Extended Hours Access,PRC DELEGATED CO-COMMISSIONING,ECCLESFIELD GROUP PRACTICE,38612413,5114.88,S35 9XQ
Department of Health,NHS Sheffield CCG,31/10/2021,C&M-GMS DES Learn Dsblty Hlth Chk,PRC DELEGATED CO-COMMISSIONING,ECCLESFIELD GROUP PRACTICE,38612413,1260,S35 9XQ
Department of Health,NHS Sheffield CCG,31/10/2021,C&M-GMS DES Minor Surgery,PRC DELEGATED CO-COMMISSIONING,ECCLESFIELD GROUP PRACTICE,38612413,280,S35 9XQ
Department of Health,NHS Sheffield CCG,31/10/2021,C&M-GMS Global Sum,PRC DELEGATED CO-COMMISSIONING,ECCLESFIELD GROUP PRACTICE,38612413,75125.33,S35 9XQ
Department of Health,NHS Sheffield CCG,31/10/2021,C&M-GMS LONG COVID ES,PRC DELEGATED CO-COMMISSIONING,ECCLESFIELD GROUP PRACTICE,38612413,1420.03,S35 9XQ
Department of Health,NHS Sheffield CCG,31/10/2021,C&M-GMS PCN DES Clinical Director,PRC DELEGATED CO-COMMISSIONING,ECCLESFIELD GROUP PRACTICE,38612413,2614.27,S35 9XQ
Department of Health,NHS Sheffield CCG,31/10/2021,C&M-GMS PCN DES PCN support,PRC DELEGATED CO-COMMISSIONING,ECCLESFIELD GROUP PRACTICE,38612413,5328,S35 9XQ
Department of Health,NHS Sheffield CCG,31/10/2021,C&M-GMS PCN DES Participation,PRC DELEGATED CO-COMMISSIONING,ECCLESFIELD GROUP PRACTICE,38612413,1441.13,S35 9XQ
Department of Health,NHS Sheffield CCG,31/10/2021,C&M-GMS PCN DES Physiotherapist,PRC DELEGATED CO-COMMISSIONING,ECCLESFIELD GROUP PRACTICE,38612413,4716.25,S35 9XQ
Department of Health,NHS Sheffield CCG,31/10/2021,C&M-GMS PCN DES Soc Prescribing,PRC DELEGATED CO-COMMISSIONING,ECCLESFIELD GROUP PRACTICE,38612413,8000.48,S35 9XQ
Department of Health,NHS Sheffield CCG,31/10/2021,C&M-GMS PCO Other,PRC DELEGATED CO-COMMISSIONING,ECCLESFIELD GROUP PRACTICE,38612413,542,S35 9XQ
Department of Health,NHS Sheffield CCG,31/10/2021,C&M-GMS Prem Notional Rent,PRC DELEGATED CO-COMMISSIONING,ECCLESFIELD GROUP PRACTICE,38612413,6899.17,S35 9XQ
Department of Health,NHS Sheffield CCG,31/10/2021,C&M-GMS Prem Rates,PRC DELEGATED CO-COMMISSIONING,ECCLESFIELD GROUP PRACTICE,38612413,1063,S35 9XQ
Department of Health,NHS Sheffield CCG,31/10/2021,C&M-GMS QOF Aspiration,PRC DELEGATED CO-COMMISSIONING,ECCLESFIELD GROUP PRACTICE,38612413,9899.3,S35 9XQ
Department of Health,NHS Sheffield CCG,31/10/2021,C&M-GMS DES Learn Dsblty Hlth Chk,PRC DELEGATED CO-COMMISSIONING,ELM LANE SURGERY,38612415,560,S5 7TW
Department of Health,NHS Sheffield CCG,31/10/2021,C&M-GMS Global Sum,PRC DELEGATED CO-COMMISSIONING,ELM LANE SURGERY,38612415,46125.64,S5 7TW
Department of Health,NHS Sheffield CCG,31/10/2021,C&M-GMS LONG COVID ES,PRC DELEGATED CO-COMMISSIONING,ELM LANE SURGERY,38612415,890.73,S5 7TW
Department of Health,NHS Sheffield CCG,31/10/2021,C&M-GMS PCN DES Participation,PRC DELEGATED CO-COMMISSIONING,ELM LANE SURGERY,38612415,865.86,S5 7TW
Department of Health,NHS Sheffield CCG,31/10/2021,C&M-GMS PCO Other,PRC DELEGATED CO-COMMISSIONING,ELM LANE SURGERY,38612415,358.8,S5 7TW
Department of Health,NHS Sheffield CCG,31/10/2021,C&M-GMS Prem Notional Rent,PRC DELEGATED CO-COMMISSIONING,ELM LANE SURGERY,38612415,5343,S5 7TW
Department of Health,NHS Sheffield CCG,31/10/2021,C&M-GMS Prem Rates,PRC DELEGATED CO-COMMISSIONING,ELM LANE SURGERY,38612415,959,S5 7TW
Department of Health,NHS Sheffield CCG,31/10/2021,C&M-GMS QOF Aspiration,PRC DELEGATED CO-COMMISSIONING,ELM LANE SURGERY,38612415,5528.96,S5 7TW
Department of Health,NHS Sheffield CCG,31/10/2021,Cont Care-Physical Disab (<65),CHC ADULT FULLY FUNDED,FAIRWINDS HEALTH CARE LTD,38480130,41077.87,S61 1AJ
Department of Health,NHS Sheffield CCG,31/10/2021,C&M-PMS Contract Value,PRC DELEGATED CO-COMMISSIONING,FALKLAND HOUSE,38426538,27888.24,S11 7PL
Department of Health,NHS Sheffield CCG,31/10/2021,C&M-PMS LONG COVID ES,PRC DELEGATED CO-COMMISSIONING,FALKLAND HOUSE,38426538,659.07,S11 7PL
Department of Health,NHS Sheffield CCG,31/10/2021,C&M-PMS PCN DES Participation,PRC DELEGATED CO-COMMISSIONING,FALKLAND HOUSE,38426538,501.49,S11 7PL
Department of Health,NHS Sheffield CCG,31/10/2021,C&M-PMS PCO Other,PRC DELEGATED CO-COMMISSIONING,FALKLAND HOUSE,38426538,278.9,S11 7PL
Department of Health,NHS Sheffield CCG,31/10/2021,C&M-PMS Prem Notional Rent,PRC DELEGATED CO-COMMISSIONING,FALKLAND HOUSE,38426538,1904.17,S11 7PL
Department of Health,NHS Sheffield CCG,31/10/2021,C&M-PMS Prem Rates,PRC DELEGATED CO-COMMISSIONING,FALKLAND HOUSE,38426538,786,S11 7PL
Department of Health,NHS Sheffield CCG,31/10/2021,C&M-PMS Prem Water Rates,PRC DELEGATED CO-COMMISSIONING,FALKLAND HOUSE,38426538,90.19,S11 7PL
Department of Health,NHS Sheffield CCG,31/10/2021,C&M-PMS QOF Aspiration,PRC DELEGATED CO-COMMISSIONING,FALKLAND HOUSE,38426538,3362.7,S11 7PL
Department of Health,NHS Sheffield CCG,31/10/2021,C&M-GMS DES Minor Surgery,PRC DELEGATED CO-COMMISSIONING,FAR LANE MEDICAL CENTRE,38612417,4595,S6 4FA
Department of Health,NHS Sheffield CCG,31/10/2021,C&M-GMS Global Sum,PRC DELEGATED CO-COMMISSIONING,FAR LANE MEDICAL CENTRE,38612417,59733.64,S6 4FA
Department of Health,NHS Sheffield CCG,31/10/2021,C&M-GMS LONG COVID ES,PRC DELEGATED CO-COMMISSIONING,FAR LANE MEDICAL CENTRE,38612417,1178.79,S6 4FA
Department of Health,NHS Sheffield CCG,31/10/2021,C&M-GMS PCN DES Participation,PRC DELEGATED CO-COMMISSIONING,FAR LANE MEDICAL CENTRE,38612417,1139.22,S6 4FA
Department of Health,NHS Sheffield CCG,31/10/2021,C&M-GMS PCO Other,PRC DELEGATED CO-COMMISSIONING,FAR LANE MEDICAL CENTRE,38612417,458.3,S6 4FA
Department of Health,NHS Sheffield CCG,31/10/2021,C&M-GMS Prem Notional Rent,PRC DELEGATED CO-COMMISSIONING,FAR LANE MEDICAL CENTRE,38612417,3504.17,S6 4FA
Department of Health,NHS Sheffield CCG,31/10/2021,C&M-GMS Prem Rates,PRC DELEGATED CO-COMMISSIONING,FAR LANE MEDICAL CENTRE,38612417,1105,S6 4FA
Department of Health,NHS Sheffield CCG,31/10/2021,C&M-GMS QOF Aspiration,PRC DELEGATED CO-COMMISSIONING,FAR LANE MEDICAL CENTRE,38612417,6827.86,S6 4FA
Department of Health,NHS Sheffield CCG,31/10/2021,C&M-PMS Contract Value,PRC DELEGATED CO-COMMISSIONING,FIRTH PARK SURGERY,38426541,80907.98,S5 6HH
Department of Health,NHS Sheffield CCG,31/10/2021,C&M-PMS DES Learn Dsblty Hlth Chk,PRC DELEGATED CO-COMMISSIONING,FIRTH PARK SURGERY,38426541,980,S5 6HH
Department of Health,NHS Sheffield CCG,31/10/2021,C&M-PMS LONG COVID ES,PRC DELEGATED CO-COMMISSIONING,FIRTH PARK SURGERY,38426541,1654.67,S5 6HH
Department of Health,NHS Sheffield CCG,31/10/2021,C&M-PMS Out of Hours Opt Outs,PRC DELEGATED CO-COMMISSIONING,FIRTH PARK SURGERY,38426541,49.61,S5 6HH
Department of Health,NHS Sheffield CCG,31/10/2021,C&M-PMS PCN DES Participation,PRC DELEGATED CO-COMMISSIONING,FIRTH PARK SURGERY,38426541,1461.7,S5 6HH
Department of Health,NHS Sheffield CCG,31/10/2021,C&M-PMS Prem Notional Rent,PRC DELEGATED CO-COMMISSIONING,FIRTH PARK SURGERY,38426541,4666.67,S5 6HH
Department of Health,NHS Sheffield CCG,31/10/2021,C&M-PMS Prem Rates,PRC DELEGATED CO-COMMISSIONING,FIRTH PARK SURGERY,38426541,1508,S5 6HH
Department of Health,NHS Sheffield CCG,31/10/2021,C&M-PMS QOF Aspiration,PRC DELEGATED CO-COMMISSIONING,FIRTH PARK SURGERY,38426541,8220.05,S5 6HH
Department of Health,NHS Sheffield CCG,31/10/2021,C&M-PMS Contract Value,PRC DELEGATED CO-COMMISSIONING,FORGE HEALTH GROUP,38407070,-650.39,S3 9DL
Department of Health,NHS Sheffield CCG,31/10/2021,C&M-PMS GP Statutory Levy,PRC DELEGATED CO-COMMISSIONING,FORGE HEALTH GROUP,38407070,-529.8,S3 9DL
Department of Health,NHS Sheffield CCG,31/10/2021,C&M-PMS Out of Hours Opt Outs,PRC DELEGATED CO-COMMISSIONING,FORGE HEALTH GROUP,38407070,-6049.67,S3 9DL
Department of Health,NHS Sheffield CCG,31/10/2021,C&M-PMS PCN DES Clinical Director,PRC DELEGATED CO-COMMISSIONING,FORGE HEALTH GROUP,38407070,-3467.3,S3 9DL
Department of Health,NHS Sheffield CCG,31/10/2021,C&M-PCN DES PHARMACY TECHNICIANS,PRC DELEGATED CO-COMMISSIONING,FORGE HEALTH GROUP,38426521,4613.56,S3 9DL
Department of Health,NHS Sheffield CCG,31/10/2021,C&M-PMS C&M-APMS PCN DES Physician Assoc,PRC DELEGATED CO-COMMISSIONING,FORGE HEALTH GROUP,38426521,3492.33,S3 9DL
Department of Health,NHS Sheffield CCG,31/10/2021,C&M-PMS Contract Value,PRC DELEGATED CO-COMMISSIONING,FORGE HEALTH GROUP,38426521,128681.16,S3 9DL
Department of Health,NHS Sheffield CCG,31/10/2021,C&M-PMS DES Extended Hours Access,PRC DELEGATED CO-COMMISSIONING,FORGE HEALTH GROUP,38426521,6820.92,S3 9DL
Department of Health,NHS Sheffield CCG,31/10/2021,C&M-PMS DES Learn Dsblty Hlth Chk,PRC DELEGATED CO-COMMISSIONING,FORGE HEALTH GROUP,38426521,560,S3 9DL
Department of Health,NHS Sheffield CCG,31/10/2021,C&M-PMS LONG COVID ES,PRC DELEGATED CO-COMMISSIONING,FORGE HEALTH GROUP,38426521,2434.25,S3 9DL
Department of Health,NHS Sheffield CCG,31/10/2021,C&M-PMS PCN DES Clin Pharmacist,PRC DELEGATED CO-COMMISSIONING,FORGE HEALTH GROUP,38426521,27900.84,S3 9DL
Department of Health,NHS Sheffield CCG,31/10/2021,C&M-PMS PCN DES Clinical Director,PRC DELEGATED CO-COMMISSIONING,FORGE HEALTH GROUP,38426521,3486.25,S3 9DL
Department of Health,NHS Sheffield CCG,31/10/2021,C&M-PMS PCN DES PCN support,PRC DELEGATED CO-COMMISSIONING,FORGE HEALTH GROUP,38426521,7105.13,S3 9DL
Department of Health,NHS Sheffield CCG,31/10/2021,C&M-PMS PCN DES Participation,PRC DELEGATED CO-COMMISSIONING,FORGE HEALTH GROUP,38426521,2294.59,S3 9DL
Department of Health,NHS Sheffield CCG,31/10/2021,C&M-PMS PCN DES Physiotherapist,PRC DELEGATED CO-COMMISSIONING,FORGE HEALTH GROUP,38426521,3725.46,S3 9DL
Department of Health,NHS Sheffield CCG,31/10/2021,C&M-PMS PCN DES Soc Prescribing,PRC DELEGATED CO-COMMISSIONING,FORGE HEALTH GROUP,38426521,12088.8,S3 9DL
Department of Health,NHS Sheffield CCG,31/10/2021,C&M-PMS Prem Healthcentre Rent,PRC DELEGATED CO-COMMISSIONING,FORGE HEALTH GROUP,38426521,35542.67,S3 9DL
Department of Health,NHS Sheffield CCG,31/10/2021,C&M-PMS Prem Notional Rent,PRC DELEGATED CO-COMMISSIONING,FORGE HEALTH GROUP,38426521,9891.67,S3 9DL
Department of Health,NHS Sheffield CCG,31/10/2021,C&M-PMS Prem Water Rates,PRC DELEGATED CO-COMMISSIONING,FORGE HEALTH GROUP,38426521,241.86,S3 9DL
Department of Health,NHS Sheffield CCG,31/10/2021,C&M-PMS QOF Aspiration,PRC DELEGATED CO-COMMISSIONING,FORGE HEALTH GROUP,38426521,12932.51,S3 9DL
Department of Health,NHS Sheffield CCG,31/10/2021,Cont Care-Physical Disab (<65),CHC ADULT FULLY FUNDED,FOUR SEASONS HEALTH CARE LTD,38480123,29721.52,DL1 1RW
Department of Health,NHS Sheffield CCG,31/10/2021,C&M-PMS Contract Value,PRC DELEGATED CO-COMMISSIONING,FOXHILL MEDICAL CENTRE SHEFFIELD,38407056,-946.56,S6 1GA
Department of Health,NHS Sheffield CCG,31/10/2021,C&M-PMS GP Statutory Levy,PRC DELEGATED CO-COMMISSIONING,FOXHILL MEDICAL CENTRE SHEFFIELD,38407056,-209.02,S6 1GA
Department of Health,NHS Sheffield CCG,31/10/2021,C&M-PMS Out of Hours Opt Outs,PRC DELEGATED CO-COMMISSIONING,FOXHILL MEDICAL CENTRE SHEFFIELD,38407056,-2513.46,S6 1GA
Department of Health,NHS Sheffield CCG,31/10/2021,C&M-PMS Contract Value,PRC DELEGATED CO-COMMISSIONING,FOXHILL MEDICAL CENTRE SHEFFIELD,38426487,53451.66,S6 1GA
Department of Health,NHS Sheffield CCG,31/10/2021,C&M-PMS DES Learn Dsblty Hlth Chk,PRC DELEGATED CO-COMMISSIONING,FOXHILL MEDICAL CENTRE SHEFFIELD,38426487,140,S6 1GA
Department of Health,NHS Sheffield CCG,31/10/2021,C&M-PMS Funding Differential Review,PRC DELEGATED CO-COMMISSIONING,FOXHILL MEDICAL CENTRE SHEFFIELD,38426487,1157.94,S6 1GA
Department of Health,NHS Sheffield CCG,31/10/2021,C&M-PMS LONG COVID ES,PRC DELEGATED CO-COMMISSIONING,FOXHILL MEDICAL CENTRE SHEFFIELD,38426487,988.35,S6 1GA
Department of Health,NHS Sheffield CCG,31/10/2021,C&M-PMS Out of Hours Opt Outs,PRC DELEGATED CO-COMMISSIONING,FOXHILL MEDICAL CENTRE SHEFFIELD,38426487,31.58,S6 1GA
Department of Health,NHS Sheffield CCG,31/10/2021,C&M-PMS PCN DES Participation,PRC DELEGATED CO-COMMISSIONING,FOXHILL MEDICAL CENTRE SHEFFIELD,38426487,965.57,S6 1GA
Department of Health,NHS Sheffield CCG,31/10/2021,C&M-PMS PCO Other,PRC DELEGATED CO-COMMISSIONING,FOXHILL MEDICAL CENTRE SHEFFIELD,38426487,392.5,S6 1GA
Department of Health,NHS Sheffield CCG,31/10/2021,C&M-PMS Prem Healthcentre Rent,PRC DELEGATED CO-COMMISSIONING,FOXHILL MEDICAL CENTRE SHEFFIELD,38426487,48823.57,S6 1GA
Department of Health,NHS Sheffield CCG,31/10/2021,C&M-PMS QOF Aspiration,PRC DELEGATED CO-COMMISSIONING,FOXHILL MEDICAL CENTRE SHEFFIELD,38426487,6019.72,S6 1GA
Department of Health,NHS Sheffield CCG,31/10/2021,C&M-PMS Contract Value,PRC DELEGATED CO-COMMISSIONING,GLEADLESS MEDICAL CENTRE,38426498,71125.01,S14 1PQ
Department of Health,NHS Sheffield CCG,31/10/2021,C&M-PMS Funding Differential Review,PRC DELEGATED CO-COMMISSIONING,GLEADLESS MEDICAL CENTRE,38426498,1547.97,S14 1PQ
Department of Health,NHS Sheffield CCG,31/10/2021,C&M-PMS LONG COVID ES,PRC DELEGATED CO-COMMISSIONING,GLEADLESS MEDICAL CENTRE,38426498,1462.4,S14 1PQ
Department of Health,NHS Sheffield CCG,31/10/2021,C&M-PMS Out of Hours Opt Outs,PRC DELEGATED CO-COMMISSIONING,GLEADLESS MEDICAL CENTRE,38426498,49.03,S14 1PQ
Department of Health,NHS Sheffield CCG,31/10/2021,C&M-PMS PCN DES Participation,PRC DELEGATED CO-COMMISSIONING,GLEADLESS MEDICAL CENTRE,38426498,1285.55,S14 1PQ
Department of Health,NHS Sheffield CCG,31/10/2021,C&M-PMS PCO Other,PRC DELEGATED CO-COMMISSIONING,GLEADLESS MEDICAL CENTRE,38426498,556.4,S14 1PQ
Department of Health,NHS Sheffield CCG,31/10/2021,C&M-PMS Prem Notional Rent,PRC DELEGATED CO-COMMISSIONING,GLEADLESS MEDICAL CENTRE,38426498,6885.42,S14 1PQ
Department of Health,NHS Sheffield CCG,31/10/2021,C&M-PMS Prem Rates,PRC DELEGATED CO-COMMISSIONING,GLEADLESS MEDICAL CENTRE,38426498,1210,S14 1PQ
Department of Health,NHS Sheffield CCG,31/10/2021,C&M-PMS Prem Water Rates,PRC DELEGATED CO-COMMISSIONING,GLEADLESS MEDICAL CENTRE,38426498,210.23,S14 1PQ
Department of Health,NHS Sheffield CCG,31/10/2021,C&M-PMS QOF Aspiration,PRC DELEGATED CO-COMMISSIONING,GLEADLESS MEDICAL CENTRE,38426498,8062.34,S14 1PQ
Department of Health,NHS Sheffield CCG,31/10/2021,C&M-PMS Contract Value,PRC DELEGATED CO-COMMISSIONING,GREEN CROSS GROUP PRACTICE,38426533,65408.63,S5 0AE
Department of Health,NHS Sheffield CCG,31/10/2021,C&M-PMS Funding Differential Review,PRC DELEGATED CO-COMMISSIONING,GREEN CROSS GROUP PRACTICE,38426533,506.77,S5 0AE
Department of Health,NHS Sheffield CCG,31/10/2021,C&M-PMS LONG COVID ES,PRC DELEGATED CO-COMMISSIONING,GREEN CROSS GROUP PRACTICE,38426533,1289.27,S5 0AE
Department of Health,NHS Sheffield CCG,31/10/2021,C&M-PMS PCN DES Participation,PRC DELEGATED CO-COMMISSIONING,GREEN CROSS GROUP PRACTICE,38426533,798.5,S5 0AE
Department of Health,NHS Sheffield CCG,31/10/2021,C&M-PMS PCO Other,PRC DELEGATED CO-COMMISSIONING,GREEN CROSS GROUP PRACTICE,38426533,547.3,S5 0AE
Department of Health,NHS Sheffield CCG,31/10/2021,C&M-PMS Prem Notional Rent,PRC DELEGATED CO-COMMISSIONING,GREEN CROSS GROUP PRACTICE,38426533,5558.33,S5 0AE
Department of Health,NHS Sheffield CCG,31/10/2021,C&M-PMS QOF Aspiration,PRC DELEGATED CO-COMMISSIONING,GREEN CROSS GROUP PRACTICE,38426533,6643.07,S5 0AE
Department of Health,NHS Sheffield CCG,31/10/2021,C&M-GMS Global Sum,PRC DELEGATED CO-COMMISSIONING,GRENOSIDE SURGERY,38612393,66219.61,S35 8NX
Department of Health,NHS Sheffield CCG,31/10/2021,C&M-GMS LONG COVID ES,PRC DELEGATED CO-COMMISSIONING,GRENOSIDE SURGERY,38612393,1278.88,S35 8NX
Department of Health,NHS Sheffield CCG,31/10/2021,C&M-GMS PCN DES Participation,PRC DELEGATED CO-COMMISSIONING,GRENOSIDE SURGERY,38612393,1250.62,S35 8NX
Department of Health,NHS Sheffield CCG,31/10/2021,C&M-GMS PCO Other,PRC DELEGATED CO-COMMISSIONING,GRENOSIDE SURGERY,38612393,492.7,S35 8NX
Department of Health,NHS Sheffield CCG,31/10/2021,C&M-GMS Prem Notional Rent,PRC DELEGATED CO-COMMISSIONING,GRENOSIDE SURGERY,38612393,8375,S35 8NX
Department of Health,NHS Sheffield CCG,31/10/2021,C&M-GMS Prem Rates,PRC DELEGATED CO-COMMISSIONING,GRENOSIDE SURGERY,38612393,1622,S35 8NX
Department of Health,NHS Sheffield CCG,31/10/2021,C&M-GMS QOF Aspiration,PRC DELEGATED CO-COMMISSIONING,GRENOSIDE SURGERY,38612393,6590.45,S35 8NX
Department of Health,NHS Sheffield CCG,31/10/2021,C&M-GMS Global Sum,PRC DELEGATED CO-COMMISSIONING,GREYSTONES MEDICAL CENTRE,38612395,21389.81,S11 7BJ
Department of Health,NHS Sheffield CCG,31/10/2021,C&M-GMS LONG COVID ES,PRC DELEGATED CO-COMMISSIONING,GREYSTONES MEDICAL CENTRE,38612395,613.55,S11 7BJ
Department of Health,NHS Sheffield CCG,31/10/2021,C&M-GMS PCN DES Participation,PRC DELEGATED CO-COMMISSIONING,GREYSTONES MEDICAL CENTRE,38612395,403.29,S11 7BJ
Department of Health,NHS Sheffield CCG,31/10/2021,C&M-GMS PCO Other,PRC DELEGATED CO-COMMISSIONING,GREYSTONES MEDICAL CENTRE,38612395,263,S11 7BJ
Department of Health,NHS Sheffield CCG,31/10/2021,C&M-GMS Prem Notional Rent,PRC DELEGATED CO-COMMISSIONING,GREYSTONES MEDICAL CENTRE,38612395,2885.42,S11 7BJ
Department of Health,NHS Sheffield CCG,31/10/2021,C&M-GMS Prem Rates,PRC DELEGATED CO-COMMISSIONING,GREYSTONES MEDICAL CENTRE,38612395,426,S11 7BJ
Department of Health,NHS Sheffield CCG,31/10/2021,C&M-GMS QOF Aspiration,PRC DELEGATED CO-COMMISSIONING,GREYSTONES MEDICAL CENTRE,38612395,2481.16,S11 7BJ
Department of Health,NHS Sheffield CCG,31/10/2021,C&M-PMS Contract Value,PRC DELEGATED CO-COMMISSIONING,HACKENTHORPE MEDICAL CENTRE,38426504,51366.12,S12 4LA
Department of Health,NHS Sheffield CCG,31/10/2021,C&M-PMS DES Learn Dsblty Hlth Chk,PRC DELEGATED CO-COMMISSIONING,HACKENTHORPE MEDICAL CENTRE,38426504,280,S12 4LA
Department of Health,NHS Sheffield CCG,31/10/2021,C&M-PMS LONG COVID ES,PRC DELEGATED CO-COMMISSIONING,HACKENTHORPE MEDICAL CENTRE,38426504,1110.53,S12 4LA
Department of Health,NHS Sheffield CCG,31/10/2021,C&M-PMS Out of Hours Opt Outs,PRC DELEGATED CO-COMMISSIONING,HACKENTHORPE MEDICAL CENTRE,38426504,26.89,S12 4LA
Department of Health,NHS Sheffield CCG,31/10/2021,C&M-PMS PCN DES Participation,PRC DELEGATED CO-COMMISSIONING,HACKENTHORPE MEDICAL CENTRE,38426504,930.28,S12 4LA
Department of Health,NHS Sheffield CCG,31/10/2021,C&M-PMS PCO Locum Adop/Pat/Mat,PRC DELEGATED CO-COMMISSIONING,HACKENTHORPE MEDICAL CENTRE,38426504,11071.62,S12 4LA
Department of Health,NHS Sheffield CCG,31/10/2021,C&M-PMS PCO Other,PRC DELEGATED CO-COMMISSIONING,HACKENTHORPE MEDICAL CENTRE,38426504,434.8,S12 4LA
Department of Health,NHS Sheffield CCG,31/10/2021,C&M-PMS Prem Notional Rent,PRC DELEGATED CO-COMMISSIONING,HACKENTHORPE MEDICAL CENTRE,38426504,5116.67,S12 4LA
Department of Health,NHS Sheffield CCG,31/10/2021,C&M-PMS Prem Rates,PRC DELEGATED CO-COMMISSIONING,HACKENTHORPE MEDICAL CENTRE,38426504,861,S12 4LA
Department of Health,NHS Sheffield CCG,31/10/2021,C&M-PMS QOF Aspiration,PRC DELEGATED CO-COMMISSIONING,HACKENTHORPE MEDICAL CENTRE,38426504,7164.43,S12 4LA
Department of Health,NHS Sheffield CCG,31/10/2021,C&M-GMS DES Minor Surgery,PRC DELEGATED CO-COMMISSIONING,HANDSWORTH MEDICAL PRACTICE SHEFFIELD,38612388,80,S13 9BZ
Department of Health,NHS Sheffield CCG,31/10/2021,C&M-GMS Global Sum,PRC DELEGATED CO-COMMISSIONING,HANDSWORTH MEDICAL PRACTICE SHEFFIELD,38612388,84541.53,S13 9BZ
Department of Health,NHS Sheffield CCG,31/10/2021,C&M-GMS LONG COVID ES,PRC DELEGATED CO-COMMISSIONING,HANDSWORTH MEDICAL PRACTICE SHEFFIELD,38612388,1725.07,S13 9BZ
Department of Health,NHS Sheffield CCG,31/10/2021,C&M-GMS PCN DES Participation,PRC DELEGATED CO-COMMISSIONING,HANDSWORTH MEDICAL PRACTICE SHEFFIELD,38612388,1619.69,S13 9BZ
Department of Health,NHS Sheffield CCG,31/10/2021,C&M-GMS Prem Notional Rent,PRC DELEGATED CO-COMMISSIONING,HANDSWORTH MEDICAL PRACTICE SHEFFIELD,38612388,3321.66,S13 9BZ
Department of Health,NHS Sheffield CCG,31/10/2021,C&M-GMS Prem Water Rates,PRC DELEGATED CO-COMMISSIONING,HANDSWORTH MEDICAL PRACTICE SHEFFIELD,38612388,467.79,S13 9BZ
Department of Health,NHS Sheffield CCG,31/10/2021,C&M-GMS QOF Aspiration,PRC DELEGATED CO-COMMISSIONING,HANDSWORTH MEDICAL PRACTICE SHEFFIELD,38612388,8749.2,S13 9BZ
Department of Health,NHS Sheffield CCG,31/10/2021,C&M-GMS Global Sum,PRC DELEGATED CO-COMMISSIONING,HEELEY GREEN SURGERY,38612396,44286.05,S2 3AJ
Department of Health,NHS Sheffield CCG,31/10/2021,C&M-GMS LONG COVID ES,PRC DELEGATED CO-COMMISSIONING,HEELEY GREEN SURGERY,38612396,966.41,S2 3AJ
Department of Health,NHS Sheffield CCG,31/10/2021,C&M-GMS PCN DES Participation,PRC DELEGATED CO-COMMISSIONING,HEELEY GREEN SURGERY,38612396,848.8,S2 3AJ
Department of Health,NHS Sheffield CCG,31/10/2021,C&M-GMS PCO Other,PRC DELEGATED CO-COMMISSIONING,HEELEY GREEN SURGERY,38612396,7766,S2 3AJ
Department of Health,NHS Sheffield CCG,31/10/2021,C&M-GMS Prem Notional Rent,PRC DELEGATED CO-COMMISSIONING,HEELEY GREEN SURGERY,38612396,3254.17,S2 3AJ
Department of Health,NHS Sheffield CCG,31/10/2021,C&M-GMS QOF Aspiration,PRC DELEGATED CO-COMMISSIONING,HEELEY GREEN SURGERY,38612396,4674.69,S2 3AJ
Department of Health,NHS Sheffield CCG,31/10/2021,C&M-GMS DES Learn Dsblty Hlth Chk,PRC DELEGATED CO-COMMISSIONING,HOLLIES MEDICAL CENTRE,38612392,140,S11 9AL
Department of Health,NHS Sheffield CCG,31/10/2021,C&M-GMS DES Minor Surgery,PRC DELEGATED CO-COMMISSIONING,HOLLIES MEDICAL CENTRE,38612392,40,S11 9AL
Department of Health,NHS Sheffield CCG,31/10/2021,C&M-GMS Global Sum,PRC DELEGATED CO-COMMISSIONING,HOLLIES MEDICAL CENTRE,38612392,68587.56,S11 9AL
Department of Health,NHS Sheffield CCG,31/10/2021,C&M-GMS LONG COVID ES,PRC DELEGATED CO-COMMISSIONING,HOLLIES MEDICAL CENTRE,38612392,1642.63,S11 9AL
Department of Health,NHS Sheffield CCG,31/10/2021,C&M-GMS PCN DES Participation,PRC DELEGATED CO-COMMISSIONING,HOLLIES MEDICAL CENTRE,38612392,1270.72,S11 9AL
Department of Health,NHS Sheffield CCG,31/10/2021,C&M-GMS PCO Other,PRC DELEGATED CO-COMMISSIONING,HOLLIES MEDICAL CENTRE,38612392,618.9,S11 9AL
Department of Health,NHS Sheffield CCG,31/10/2021,C&M-GMS Prem Notional Rent,PRC DELEGATED CO-COMMISSIONING,HOLLIES MEDICAL CENTRE,38612392,3358.33,S11 9AL
Department of Health,NHS Sheffield CCG,31/10/2021,C&M-GMS Prem Rates,PRC DELEGATED CO-COMMISSIONING,HOLLIES MEDICAL CENTRE,38612392,1272,S11 9AL
Department of Health,NHS Sheffield CCG,31/10/2021,C&M-GMS QOF Aspiration,PRC DELEGATED CO-COMMISSIONING,HOLLIES MEDICAL CENTRE,38612392,8186.06,S11 9AL
Department of Health,NHS Sheffield CCG,31/10/2021,Cont Care-Physical Disab (<65),CHC ADULT FULLY FUNDED,HORIZON CARE HOMES LTD,38480147,64135.05,S25 3QA
Department of Health,NHS Sheffield CCG,31/10/2021,Cont Care-Physical Disab (<65),CHC ADULT FULLY FUNDED,HORIZON CARE HOMES LTD,38480159,88570.29,S25 3QA
Department of Health,NHS Sheffield CCG,31/10/2021,Cont Care-Physical Disab (<65),CHC ADULT FULLY FUNDED,HORIZON CARE HOMES LTD,38480161,99676.25,S25 3QA
Department of Health,NHS Sheffield CCG,31/10/2021,Clinical&Medical-Serv Recd-F Trsts,BEREAVEMENT SERVICE,HUMBER TEACHING NHS FOUNDATION TRUST,38467814,56858,WF3 1WE
Department of Health,NHS Sheffield CCG,31/10/2021,Cont Care-Physical Disab (<65),CHC ADULT FULLY FUNDED,INLET LTD,38480164,102903.39,S48NB
Department of Health,NHS Sheffield CCG,31/10/2021,C&M- PCN DES CARE COORDINATOR,PRC DELEGATED CO-COMMISSIONING,JAUNTY SPRINGS HEALTH CENTRE,38426501,1749.6,S12 3DZ
Department of Health,NHS Sheffield CCG,31/10/2021,C&M- PCN DES Nursing Associate,PRC DELEGATED CO-COMMISSIONING,JAUNTY SPRINGS HEALTH CENTRE,38426501,660.58,S12 3DZ
Department of Health,NHS Sheffield CCG,31/10/2021,C&M-PCN DES OCCUPATIONAL THERAPISTS,PRC DELEGATED CO-COMMISSIONING,JAUNTY SPRINGS HEALTH CENTRE,38426501,2521.63,S12 3DZ
Department of Health,NHS Sheffield CCG,31/10/2021,C&M-PCN DES PHARMACY TECHNICIANS,PRC DELEGATED CO-COMMISSIONING,JAUNTY SPRINGS HEALTH CENTRE,38426501,3009.5,S12 3DZ
Department of Health,NHS Sheffield CCG,31/10/2021,C&M-PMS Contract Value,PRC DELEGATED CO-COMMISSIONING,JAUNTY SPRINGS HEALTH CENTRE,38426501,32884.76,S12 3DZ
Department of Health,NHS Sheffield CCG,31/10/2021,C&M-PMS DES Extended Hours Access,PRC DELEGATED CO-COMMISSIONING,JAUNTY SPRINGS HEALTH CENTRE,38426501,4196.88,S12 3DZ
Department of Health,NHS Sheffield CCG,31/10/2021,C&M-PMS DES Learn Dsblty Hlth Chk,PRC DELEGATED CO-COMMISSIONING,JAUNTY SPRINGS HEALTH CENTRE,38426501,140,S12 3DZ
Department of Health,NHS Sheffield CCG,31/10/2021,C&M-PMS LONG COVID ES,PRC DELEGATED CO-COMMISSIONING,JAUNTY SPRINGS HEALTH CENTRE,38426501,628.56,S12 3DZ
Department of Health,NHS Sheffield CCG,31/10/2021,C&M-PMS Out of Hours Opt Outs,PRC DELEGATED CO-COMMISSIONING,JAUNTY SPRINGS HEALTH CENTRE,38426501,5.14,S12 3DZ
Department of Health,NHS Sheffield CCG,31/10/2021,C&M-PMS PCN DES Clin Pharmacist,PRC DELEGATED CO-COMMISSIONING,JAUNTY SPRINGS HEALTH CENTRE,38426501,8378.52,S12 3DZ
Department of Health,NHS Sheffield CCG,31/10/2021,C&M-PMS PCN DES Clinical Director,PRC DELEGATED CO-COMMISSIONING,JAUNTY SPRINGS HEALTH CENTRE,38426501,2145.07,S12 3DZ
Department of Health,NHS Sheffield CCG,31/10/2021,C&M-PMS PCN DES PCN support,PRC DELEGATED CO-COMMISSIONING,JAUNTY SPRINGS HEALTH CENTRE,38426501,4371.75,S12 3DZ
Department of Health,NHS Sheffield CCG,31/10/2021,C&M-PMS PCN DES Participation,PRC DELEGATED CO-COMMISSIONING,JAUNTY SPRINGS HEALTH CENTRE,38426501,593.33,S12 3DZ
Department of Health,NHS Sheffield CCG,31/10/2021,C&M-PMS PCN DES Physiotherapist,PRC DELEGATED CO-COMMISSIONING,JAUNTY SPRINGS HEALTH CENTRE,38426501,4735.75,S12 3DZ
Department of Health,NHS Sheffield CCG,31/10/2021,C&M-PMS PCN DES Soc Prescribing,PRC DELEGATED CO-COMMISSIONING,JAUNTY SPRINGS HEALTH CENTRE,38426501,5342.72,S12 3DZ
Department of Health,NHS Sheffield CCG,31/10/2021,C&M-PMS PCO Other,PRC DELEGATED CO-COMMISSIONING,JAUNTY SPRINGS HEALTH CENTRE,38426501,267.9,S12 3DZ
Department of Health,NHS Sheffield CCG,31/10/2021,C&M-PMS Prem Notional Rent,PRC DELEGATED CO-COMMISSIONING,JAUNTY SPRINGS HEALTH CENTRE,38426501,3254.55,S12 3DZ
Department of Health,NHS Sheffield CCG,31/10/2021,C&M-PMS Prem Rates,PRC DELEGATED CO-COMMISSIONING,JAUNTY SPRINGS HEALTH CENTRE,38426501,848,S12 3DZ
Department of Health,NHS Sheffield CCG,31/10/2021,C&M-PMS QOF Aspiration,PRC DELEGATED CO-COMMISSIONING,JAUNTY SPRINGS HEALTH CENTRE,38426501,4210.91,S12 3DZ
Department of Health,NHS Sheffield CCG,31/10/2021,Training Expenses,BEREAVEMENT SERVICE,LEADERSHIP CENTRE,38537985,36000,N1 6AH
Department of Health,NHS Sheffield CCG,31/10/2021,Hcare Srv Rec NHS Trust-Contract Baseline,ACUTE COMMISSIONING,LEEDS TEACHING HOSPITALS NHS TRUST,38467804,53708,LS9 7TF
Department of Health,NHS Sheffield CCG,31/10/2021,Cont Care-Physical Disab (<65),CHC ADULT FULLY FUNDED,LONGLEY HEALTH CARE LTD,38480134,218706.44,S5 7JZ
Department of Health,NHS Sheffield CCG,31/10/2021,C&M-PMS Contract Value,PRC DELEGATED CO-COMMISSIONING,MANCHESTER ROAD SURGERY SHEFFIELD,38426505,35562.11,S10 5PN
Department of Health,NHS Sheffield CCG,31/10/2021,C&M-PMS LONG COVID ES,PRC DELEGATED CO-COMMISSIONING,MANCHESTER ROAD SURGERY SHEFFIELD,38426505,804.33,S10 5PN
Department of Health,NHS Sheffield CCG,31/10/2021,C&M-PMS Out of Hours Opt Outs,PRC DELEGATED CO-COMMISSIONING,MANCHESTER ROAD SURGERY SHEFFIELD,38426505,3.31,S10 5PN
Department of Health,NHS Sheffield CCG,31/10/2021,C&M-PMS PCN DES Participation,PRC DELEGATED CO-COMMISSIONING,MANCHESTER ROAD SURGERY SHEFFIELD,38426505,637.95,S10 5PN
Department of Health,NHS Sheffield CCG,31/10/2021,C&M-PMS Prem Cost Rent,PRC DELEGATED CO-COMMISSIONING,MANCHESTER ROAD SURGERY SHEFFIELD,38426505,3077.32,S10 5PN
Department of Health,NHS Sheffield CCG,31/10/2021,C&M-PMS Prem Notional Rent,PRC DELEGATED CO-COMMISSIONING,MANCHESTER ROAD SURGERY SHEFFIELD,38426505,442.92,S10 5PN
Department of Health,NHS Sheffield CCG,31/10/2021,C&M-PMS Prem Rates,PRC DELEGATED CO-COMMISSIONING,MANCHESTER ROAD SURGERY SHEFFIELD,38426505,986,S10 5PN
Department of Health,NHS Sheffield CCG,31/10/2021,C&M-PMS QOF Aspiration,PRC DELEGATED CO-COMMISSIONING,MANCHESTER ROAD SURGERY SHEFFIELD,38426505,4335.38,S10 5PN
Department of Health,NHS Sheffield CCG,31/10/2021,C&M-PMS Contract Value,PRC DELEGATED CO-COMMISSIONING,MANOR & PARK GROUP PRACTICE,38426507,73769.76,S2 5QQ
Department of Health,NHS Sheffield CCG,31/10/2021,C&M-PMS DES Learn Dsblty Hlth Chk,PRC DELEGATED CO-COMMISSIONING,MANOR & PARK GROUP PRACTICE,38426507,560,S2 5QQ
Department of Health,NHS Sheffield CCG,31/10/2021,C&M-PMS LONG COVID ES,PRC DELEGATED CO-COMMISSIONING,MANOR & PARK GROUP PRACTICE,38426507,1405.01,S2 5QQ
Department of Health,NHS Sheffield CCG,31/10/2021,C&M-PMS Out of Hours Opt Outs,PRC DELEGATED CO-COMMISSIONING,MANOR & PARK GROUP PRACTICE,38426507,38.76,S2 5QQ
Department of Health,NHS Sheffield CCG,31/10/2021,C&M-PMS PCN DES Participation,PRC DELEGATED CO-COMMISSIONING,MANOR & PARK GROUP PRACTICE,38426507,1333.57,S2 5QQ
Department of Health,NHS Sheffield CCG,31/10/2021,C&M-PMS Prem Notional Rent,PRC DELEGATED CO-COMMISSIONING,MANOR & PARK GROUP PRACTICE,38426507,9112.5,S2 5QQ
Department of Health,NHS Sheffield CCG,31/10/2021,C&M-PMS QOF Aspiration,PRC DELEGATED CO-COMMISSIONING,MANOR & PARK GROUP PRACTICE,38426507,6833.28,S2 5QQ
Department of Health,NHS Sheffield CCG,31/10/2021,C&M-GMS DES Minor Surgery,PRC DELEGATED CO-COMMISSIONING,MATHEWS PRACTICE,38612420,1480,S2 4UJ
Department of Health,NHS Sheffield CCG,31/10/2021,C&M-GMS Global Sum,PRC DELEGATED CO-COMMISSIONING,MATHEWS PRACTICE,38612420,58268.01,S2 4UJ
Department of Health,NHS Sheffield CCG,31/10/2021,C&M-GMS LONG COVID ES,PRC DELEGATED CO-COMMISSIONING,MATHEWS PRACTICE,38612420,1234.36,S2 4UJ
Department of Health,NHS Sheffield CCG,31/10/2021,C&M-GMS PCN DES Participation,PRC DELEGATED CO-COMMISSIONING,MATHEWS PRACTICE,38612420,1147.05,S2 4UJ
Department of Health,NHS Sheffield CCG,31/10/2021,C&M-GMS Prem Rates,PRC DELEGATED CO-COMMISSIONING,MATHEWS PRACTICE,38612420,1466,S2 4UJ
Department of Health,NHS Sheffield CCG,31/10/2021,C&M-GMS QOF Aspiration,PRC DELEGATED CO-COMMISSIONING,MATHEWS PRACTICE,38612420,6845.8,S2 4UJ
Department of Health,NHS Sheffield CCG,31/10/2021,C&M-GMS LES Equitable Funding,LOCAL ENHANCED SERVICES,MEADOWHEAD GROUP PRACTICE,38411252,25240,S8 7RL
Department of Health,NHS Sheffield CCG,31/10/2021,C&M-PMS Contract Value,PRC DELEGATED CO-COMMISSIONING,MEADOWHEAD GROUP PRACTICE,38407062,-751.85,S8 7RL
Department of Health,NHS Sheffield CCG,31/10/2021,C&M-PMS GP Statutory Levy,PRC DELEGATED CO-COMMISSIONING,MEADOWHEAD GROUP PRACTICE,38407062,-656.04,S8 7RL
Department of Health,NHS Sheffield CCG,31/10/2021,C&M-PMS Out of Hours Opt Outs,PRC DELEGATED CO-COMMISSIONING,MEADOWHEAD GROUP PRACTICE,38407062,-7763.38,S8 7RL
Department of Health,NHS Sheffield CCG,31/10/2021,C&M-PMS Prem Actual Rent,PRC DELEGATED CO-COMMISSIONING,MEADOWHEAD GROUP PRACTICE,38407062,-3358.33,S8 7RL
Department of Health,NHS Sheffield CCG,31/10/2021,C&M-PMS Prem Cost Rent,PRC DELEGATED CO-COMMISSIONING,MEADOWHEAD GROUP PRACTICE,38407062,-3647.42,S8 7RL
Department of Health,NHS Sheffield CCG,31/10/2021,C&M-PMS Prem Healthcentre Rent,PRC DELEGATED CO-COMMISSIONING,MEADOWHEAD GROUP PRACTICE,38407062,-767.14,S8 7RL
Department of Health,NHS Sheffield CCG,31/10/2021,C&M-PMS Contract Value,PRC DELEGATED CO-COMMISSIONING,MEADOWHEAD GROUP PRACTICE,38426509,165263.18,S8 7RL
Department of Health,NHS Sheffield CCG,31/10/2021,C&M-PMS Funding Differential Review,PRC DELEGATED CO-COMMISSIONING,MEADOWHEAD GROUP PRACTICE,38426509,1641.85,S8 7RL
Department of Health,NHS Sheffield CCG,31/10/2021,C&M-PMS LONG COVID ES,PRC DELEGATED CO-COMMISSIONING,MEADOWHEAD GROUP PRACTICE,38426509,3057.2,S8 7RL
Department of Health,NHS Sheffield CCG,31/10/2021,C&M-PMS PCN DES Participation,PRC DELEGATED CO-COMMISSIONING,MEADOWHEAD GROUP PRACTICE,38426509,2652.53,S8 7RL
Department of Health,NHS Sheffield CCG,31/10/2021,C&M-PMS Prem Actual Rent,PRC DELEGATED CO-COMMISSIONING,MEADOWHEAD GROUP PRACTICE,38426509,3358.33,S8 7RL
Department of Health,NHS Sheffield CCG,31/10/2021,C&M-PMS Prem Cost Rent,PRC DELEGATED CO-COMMISSIONING,MEADOWHEAD GROUP PRACTICE,38426509,3647.42,S8 7RL
Department of Health,NHS Sheffield CCG,31/10/2021,C&M-PMS Prem Healthcentre Rent,PRC DELEGATED CO-COMMISSIONING,MEADOWHEAD GROUP PRACTICE,38426509,42600.17,S8 7RL
Department of Health,NHS Sheffield CCG,31/10/2021,C&M-PMS Prem Notional Rent,PRC DELEGATED CO-COMMISSIONING,MEADOWHEAD GROUP PRACTICE,38426509,5666.67,S8 7RL
Department of Health,NHS Sheffield CCG,31/10/2021,C&M-PMS Prem Rates,PRC DELEGATED CO-COMMISSIONING,MEADOWHEAD GROUP PRACTICE,38426509,798,S8 7RL
Department of Health,NHS Sheffield CCG,31/10/2021,C&M-PMS QOF Aspiration,PRC DELEGATED CO-COMMISSIONING,MEADOWHEAD GROUP PRACTICE,38426509,18549.4,S8 7RL
Department of Health,NHS Sheffield CCG,31/10/2021,C&M-GMS DES Minor Surgery,PRC DELEGATED CO-COMMISSIONING,MEDICAL CENTRE CRYSTAL PEAKS,38612416,4715,S20 7HZ
Department of Health,NHS Sheffield CCG,31/10/2021,C&M-GMS Global Sum,PRC DELEGATED CO-COMMISSIONING,MEDICAL CENTRE CRYSTAL PEAKS,38612416,51119.33,S20 7HZ
Department of Health,NHS Sheffield CCG,31/10/2021,C&M-GMS LONG COVID ES,PRC DELEGATED CO-COMMISSIONING,MEDICAL CENTRE CRYSTAL PEAKS,38612416,1099.15,S20 7HZ
Department of Health,NHS Sheffield CCG,31/10/2021,C&M-GMS PCN DES Participation,PRC DELEGATED CO-COMMISSIONING,MEDICAL CENTRE CRYSTAL PEAKS,38612416,978.29,S20 7HZ
Department of Health,NHS Sheffield CCG,31/10/2021,C&M-GMS PCO Other,PRC DELEGATED CO-COMMISSIONING,MEDICAL CENTRE CRYSTAL PEAKS,38612416,430.8,S20 7HZ
Department of Health,NHS Sheffield CCG,31/10/2021,C&M-GMS Prem Actual Rent,PRC DELEGATED CO-COMMISSIONING,MEDICAL CENTRE CRYSTAL PEAKS,38612416,17610,S20 7HZ
Department of Health,NHS Sheffield CCG,31/10/2021,C&M-GMS Prem Notional Rent,PRC DELEGATED CO-COMMISSIONING,MEDICAL CENTRE CRYSTAL PEAKS,38612416,270,S20 7HZ
Department of Health,NHS Sheffield CCG,31/10/2021,C&M-GMS Prem Rates,PRC DELEGATED CO-COMMISSIONING,MEDICAL CENTRE CRYSTAL PEAKS,38612416,1073,S20 7HZ
Department of Health,NHS Sheffield CCG,31/10/2021,C&M-GMS QOF Aspiration,PRC DELEGATED CO-COMMISSIONING,MEDICAL CENTRE CRYSTAL PEAKS,38612416,7126.23,S20 7HZ
Department of Health,NHS Sheffield CCG,31/10/2021,C&M-GMS DES Minor Surgery,PRC DELEGATED CO-COMMISSIONING,MILL ROAD SURGERY SHEFFIELD,38612397,680,S35 9XQ
Department of Health,NHS Sheffield CCG,31/10/2021,C&M-GMS Global Sum,PRC DELEGATED CO-COMMISSIONING,MILL ROAD SURGERY SHEFFIELD,38612397,44986.92,S35 9XQ
Department of Health,NHS Sheffield CCG,31/10/2021,C&M-GMS LONG COVID ES,PRC DELEGATED CO-COMMISSIONING,MILL ROAD SURGERY SHEFFIELD,38612397,867.64,S35 9XQ
Department of Health,NHS Sheffield CCG,31/10/2021,C&M-GMS PCN DES Participation,PRC DELEGATED CO-COMMISSIONING,MILL ROAD SURGERY SHEFFIELD,38612397,838.81,S35 9XQ
Department of Health,NHS Sheffield CCG,31/10/2021,C&M-GMS PCO Other,PRC DELEGATED CO-COMMISSIONING,MILL ROAD SURGERY SHEFFIELD,38612397,350.7,S35 9XQ
Department of Health,NHS Sheffield CCG,31/10/2021,C&M-GMS Prem Notional Rent,PRC DELEGATED CO-COMMISSIONING,MILL ROAD SURGERY SHEFFIELD,38612397,4593.33,S35 9XQ
Department of Health,NHS Sheffield CCG,31/10/2021,C&M-GMS Prem Rates,PRC DELEGATED CO-COMMISSIONING,MILL ROAD SURGERY SHEFFIELD,38612397,674,S35 9XQ
Department of Health,NHS Sheffield CCG,31/10/2021,C&M-GMS QOF Aspiration,PRC DELEGATED CO-COMMISSIONING,MILL ROAD SURGERY SHEFFIELD,38612397,5365.62,S35 9XQ
Department of Health,NHS Sheffield CCG,31/10/2021,C&M-PMS Contract Value,PRC DELEGATED CO-COMMISSIONING,MOSBOROUGH HEALTH CENTRE,38426512,53688.83,S20 5BQ
Department of Health,NHS Sheffield CCG,31/10/2021,C&M-PMS LONG COVID ES,PRC DELEGATED CO-COMMISSIONING,MOSBOROUGH HEALTH CENTRE,38426512,1147.96,S20 5BQ
Department of Health,NHS Sheffield CCG,31/10/2021,C&M-PMS Out of Hours Opt Outs,PRC DELEGATED CO-COMMISSIONING,MOSBOROUGH HEALTH CENTRE,38426512,7.89,S20 5BQ
Department of Health,NHS Sheffield CCG,31/10/2021,C&M-PMS PCN DES Participation,PRC DELEGATED CO-COMMISSIONING,MOSBOROUGH HEALTH CENTRE,38426512,972.62,S20 5BQ
Department of Health,NHS Sheffield CCG,31/10/2021,C&M-PMS PCO Other,PRC DELEGATED CO-COMMISSIONING,MOSBOROUGH HEALTH CENTRE,38426512,447.8,S20 5BQ
Department of Health,NHS Sheffield CCG,31/10/2021,C&M-PMS Prem Notional Rent,PRC DELEGATED CO-COMMISSIONING,MOSBOROUGH HEALTH CENTRE,38426512,4541.67,S20 5BQ
Department of Health,NHS Sheffield CCG,31/10/2021,C&M-PMS Prem Rates,PRC DELEGATED CO-COMMISSIONING,MOSBOROUGH HEALTH CENTRE,38426512,711,S20 5BQ
Department of Health,NHS Sheffield CCG,31/10/2021,C&M-PMS QOF Aspiration,PRC DELEGATED CO-COMMISSIONING,MOSBOROUGH HEALTH CENTRE,38426512,6344.52,S20 5BQ
Department of Health,NHS Sheffield CCG,31/10/2021,C&M-PMS Contract Value,PRC DELEGATED CO-COMMISSIONING,NETHERGREEN SURGERY,38426511,68301.83,S11 7EJ
Department of Health,NHS Sheffield CCG,31/10/2021,C&M-PMS DES Learn Dsblty Hlth Chk,PRC DELEGATED CO-COMMISSIONING,NETHERGREEN SURGERY,38426511,420,S11 7EJ
Department of Health,NHS Sheffield CCG,31/10/2021,C&M-PMS Funding Differential Review,PRC DELEGATED CO-COMMISSIONING,NETHERGREEN SURGERY,38426511,1369.87,S11 7EJ
Department of Health,NHS Sheffield CCG,31/10/2021,C&M-PMS LONG COVID ES,PRC DELEGATED CO-COMMISSIONING,NETHERGREEN SURGERY,38426511,1531.16,S11 7EJ
Department of Health,NHS Sheffield CCG,31/10/2021,C&M-PMS PCN DES Participation,PRC DELEGATED CO-COMMISSIONING,NETHERGREEN SURGERY,38426511,1216.05,S11 7EJ
Department of Health,NHS Sheffield CCG,31/10/2021,C&M-PMS PCO Locum Sickness,PRC DELEGATED CO-COMMISSIONING,NETHERGREEN SURGERY,38426511,13470.82,S11 7EJ
Department of Health,NHS Sheffield CCG,31/10/2021,C&M-PMS Prem Cost Rent,PRC DELEGATED CO-COMMISSIONING,NETHERGREEN SURGERY,38426511,5057.33,S11 7EJ
Department of Health,NHS Sheffield CCG,31/10/2021,C&M-PMS Prem Rates,PRC DELEGATED CO-COMMISSIONING,NETHERGREEN SURGERY,38426511,1285,S11 7EJ
Department of Health,NHS Sheffield CCG,31/10/2021,C&M-PMS QOF Aspiration,PRC DELEGATED CO-COMMISSIONING,NETHERGREEN SURGERY,38426511,7008.62,S11 7EJ
Department of Health,NHS Sheffield CCG,31/10/2021,C&M-GMS Prem Other,PRC DELEGATED CO-COMMISSIONING,NHS ENGLAND,38596686,11067.88,WF3 1WE
Department of Health,NHS Sheffield CCG,31/10/2021,Contract- Refuse & Clinical Waste,PRC DELEGATED CO-COMMISSIONING,NHS ENGLAND,38596686,22636.18,WF3 1WE
Department of Health,NHS Sheffield CCG,31/10/2021,Charges from CSU,BUSINESS INFORMATICS,NHS NORTH OF ENGLAND CSU,38444647,26554.67,WF3 1WE
Department of Health,NHS Sheffield CCG,31/10/2021,Rent,ESTATES AND FACILITIES,NHS PROPERTY SERVICES LTD,38574021,107487.83,EC2V 7NG
Department of Health,NHS Sheffield CCG,31/10/2021,Service Charge,ESTATES AND FACILITIES,NHS PROPERTY SERVICES LTD,38574021,29314.03,EC2V 7NG
Department of Health,NHS Sheffield CCG,31/10/2021,Service Charge,ESTATES AND FACILITIES,NHS PROPERTY SERVICES LTD,38574021,5374.4,EC2V 7NG
Department of Health,NHS Sheffield CCG,31/10/2021,Service Charge,ESTATES AND FACILITIES,NHS PROPERTY SERVICES LTD,38574030,59648.74,EC2V 7NG
Department of Health,NHS Sheffield CCG,31/10/2021,Rent,RECHARGES NHS PROPERTY SERVICES LTD,NHS PROPERTY SERVICES LTD,38574021,35829.28,EC2V 7NG
Department of Health,NHS Sheffield CCG,31/10/2021,Service Charge,RECHARGES NHS PROPERTY SERVICES LTD,NHS PROPERTY SERVICES LTD,38574021,11562.8,EC2V 7NG
Department of Health,NHS Sheffield CCG,31/10/2021,Service Charge,RECHARGES NHS PROPERTY SERVICES LTD,NHS PROPERTY SERVICES LTD,38574030,19882.91,EC2V 7NG
Department of Health,NHS Sheffield CCG,31/10/2021,C&M-GMS DES Minor Surgery,PRC DELEGATED CO-COMMISSIONING,NORFOLK PARK HEALTH CENTRE,38612398,40,S2 3TA
Department of Health,NHS Sheffield CCG,31/10/2021,C&M-GMS Global Sum,PRC DELEGATED CO-COMMISSIONING,NORFOLK PARK HEALTH CENTRE,38612398,45369.57,S2 3TA
Department of Health,NHS Sheffield CCG,31/10/2021,C&M-GMS LONG COVID ES,PRC DELEGATED CO-COMMISSIONING,NORFOLK PARK HEALTH CENTRE,38612398,833.84,S2 3TA
Department of Health,NHS Sheffield CCG,31/10/2021,C&M-GMS PCN DES Participation,PRC DELEGATED CO-COMMISSIONING,NORFOLK PARK HEALTH CENTRE,38612398,820.08,S2 3TA
Department of Health,NHS Sheffield CCG,31/10/2021,C&M-GMS Prem Healthcentre Rent,PRC DELEGATED CO-COMMISSIONING,NORFOLK PARK HEALTH CENTRE,38612398,25961.04,S2 3TA
Department of Health,NHS Sheffield CCG,31/10/2021,C&M-GMS QOF Aspiration,PRC DELEGATED CO-COMMISSIONING,NORFOLK PARK HEALTH CENTRE,38612398,4434.09,S2 3TA
Department of Health,NHS Sheffield CCG,31/10/2021,C&M-GMS DES Learn Dsblty Hlth Chk,PRC DELEGATED CO-COMMISSIONING,NORWOOD MEDICAL CENTRE SHEFFIELD,38612399,140,S5 7HD
Department of Health,NHS Sheffield CCG,31/10/2021,C&M-GMS DES Minor Surgery,PRC DELEGATED CO-COMMISSIONING,NORWOOD MEDICAL CENTRE SHEFFIELD,38612399,1400,S5 7HD
Department of Health,NHS Sheffield CCG,31/10/2021,C&M-GMS Global Sum,PRC DELEGATED CO-COMMISSIONING,NORWOOD MEDICAL CENTRE SHEFFIELD,38612399,70371.61,S5 7HD
Department of Health,NHS Sheffield CCG,31/10/2021,C&M-GMS LONG COVID ES,PRC DELEGATED CO-COMMISSIONING,NORWOOD MEDICAL CENTRE SHEFFIELD,38612399,1346.32,S5 7HD
Department of Health,NHS Sheffield CCG,31/10/2021,C&M-GMS PCN DES Participation,PRC DELEGATED CO-COMMISSIONING,NORWOOD MEDICAL CENTRE SHEFFIELD,38612399,1332.45,S5 7HD
Department of Health,NHS Sheffield CCG,31/10/2021,C&M-GMS PCO Other,PRC DELEGATED CO-COMMISSIONING,NORWOOD MEDICAL CENTRE SHEFFIELD,38612399,515.9,S5 7HD
Department of Health,NHS Sheffield CCG,31/10/2021,C&M-GMS Prem Notional Rent,PRC DELEGATED CO-COMMISSIONING,NORWOOD MEDICAL CENTRE SHEFFIELD,38612399,5187.5,S5 7HD
Department of Health,NHS Sheffield CCG,31/10/2021,C&M-GMS QOF Aspiration,PRC DELEGATED CO-COMMISSIONING,NORWOOD MEDICAL CENTRE SHEFFIELD,38612399,8469.31,S5 7HD
Department of Health,NHS Sheffield CCG,31/10/2021,C&M-GMS DES Minor Surgery,PRC DELEGATED CO-COMMISSIONING,OUGHTIBRIDGE SURGERY,38612402,320,S35 0FW
Department of Health,NHS Sheffield CCG,31/10/2021,C&M-GMS Global Sum,PRC DELEGATED CO-COMMISSIONING,OUGHTIBRIDGE SURGERY,38612402,47279.9,S35 0FW
Department of Health,NHS Sheffield CCG,31/10/2021,C&M-GMS LONG COVID ES,PRC DELEGATED CO-COMMISSIONING,OUGHTIBRIDGE SURGERY,38612402,946.29,S35 0FW
Department of Health,NHS Sheffield CCG,31/10/2021,C&M-GMS PCN DES Participation,PRC DELEGATED CO-COMMISSIONING,OUGHTIBRIDGE SURGERY,38612402,886,S35 0FW
Department of Health,NHS Sheffield CCG,31/10/2021,C&M-GMS Prem Notional Rent,PRC DELEGATED CO-COMMISSIONING,OUGHTIBRIDGE SURGERY,38612402,4064.58,S35 0FW
Department of Health,NHS Sheffield CCG,31/10/2021,C&M-GMS Prem Rates,PRC DELEGATED CO-COMMISSIONING,OUGHTIBRIDGE SURGERY,38612402,511,S35 0FW
Department of Health,NHS Sheffield CCG,31/10/2021,C&M-GMS Prem Water Rates,PRC DELEGATED CO-COMMISSIONING,OUGHTIBRIDGE SURGERY,38612402,165.5,S35 0FW
Department of Health,NHS Sheffield CCG,31/10/2021,C&M-GMS QOF Aspiration,PRC DELEGATED CO-COMMISSIONING,OUGHTIBRIDGE SURGERY,38612402,4819.4,S35 0FW
Department of Health,NHS Sheffield CCG,31/10/2021,C&M-PMS Contract Value,PRC DELEGATED CO-COMMISSIONING,OWLTHORPE MEDICAL CENTRE,38426520,34558.52,S20 6PD
Department of Health,NHS Sheffield CCG,31/10/2021,C&M-PMS LONG COVID ES,PRC DELEGATED CO-COMMISSIONING,OWLTHORPE MEDICAL CENTRE,38426520,715.12,S20 6PD
Department of Health,NHS Sheffield CCG,31/10/2021,C&M-PMS Out of Hours Opt Outs,PRC DELEGATED CO-COMMISSIONING,OWLTHORPE MEDICAL CENTRE,38426520,8.44,S20 6PD
Department of Health,NHS Sheffield CCG,31/10/2021,C&M-PMS PCN DES Participation,PRC DELEGATED CO-COMMISSIONING,OWLTHORPE MEDICAL CENTRE,38426520,625.13,S20 6PD
Department of Health,NHS Sheffield CCG,31/10/2021,C&M-PMS Prem Actual Rent,PRC DELEGATED CO-COMMISSIONING,OWLTHORPE MEDICAL CENTRE,38426520,7539.58,S20 6PD
Department of Health,NHS Sheffield CCG,31/10/2021,C&M-PMS Prem Rates,PRC DELEGATED CO-COMMISSIONING,OWLTHORPE MEDICAL CENTRE,38426520,1023,S20 6PD
Department of Health,NHS Sheffield CCG,31/10/2021,C&M-PMS Prem Water Rates,PRC DELEGATED CO-COMMISSIONING,OWLTHORPE MEDICAL CENTRE,38426520,74.48,S20 6PD
Department of Health,NHS Sheffield CCG,31/10/2021,C&M-PMS QOF Aspiration,PRC DELEGATED CO-COMMISSIONING,OWLTHORPE MEDICAL CENTRE,38426520,4236.51,S20 6PD
Department of Health,NHS Sheffield CCG,31/10/2021,C&M-PMS Contract Value,PRC DELEGATED CO-COMMISSIONING,PAGE HALL MEDICAL CENTRE,38426523,60848.74,S4 8GB
Department of Health,NHS Sheffield CCG,31/10/2021,C&M-PMS Funding Differential Review,PRC DELEGATED CO-COMMISSIONING,PAGE HALL MEDICAL CENTRE,38426523,1161.37,S4 8GB
Department of Health,NHS Sheffield CCG,31/10/2021,C&M-PMS LONG COVID ES,PRC DELEGATED CO-COMMISSIONING,PAGE HALL MEDICAL CENTRE,38426523,1313.67,S4 8GB
Department of Health,NHS Sheffield CCG,31/10/2021,C&M-PMS Out of Hours Opt Outs,PRC DELEGATED CO-COMMISSIONING,PAGE HALL MEDICAL CENTRE,38426523,18.53,S4 8GB
Department of Health,NHS Sheffield CCG,31/10/2021,C&M-PMS PCN DES Participation,PRC DELEGATED CO-COMMISSIONING,PAGE HALL MEDICAL CENTRE,38426523,1099.51,S4 8GB
Department of Health,NHS Sheffield CCG,31/10/2021,C&M-PMS PCO Other,PRC DELEGATED CO-COMMISSIONING,PAGE HALL MEDICAL CENTRE,38426523,504.9,S4 8GB
Department of Health,NHS Sheffield CCG,31/10/2021,C&M-PMS Prem Notional Rent,PRC DELEGATED CO-COMMISSIONING,PAGE HALL MEDICAL CENTRE,38426523,4833.33,S4 8GB
Department of Health,NHS Sheffield CCG,31/10/2021,C&M-PMS Prem Rates,PRC DELEGATED CO-COMMISSIONING,PAGE HALL MEDICAL CENTRE,38426523,848,S4 8GB
Department of Health,NHS Sheffield CCG,31/10/2021,C&M-PMS QOF Aspiration,PRC DELEGATED CO-COMMISSIONING,PAGE HALL MEDICAL CENTRE,38426523,5333.21,S4 8GB
Department of Health,NHS Sheffield CCG,31/10/2021,C&M-GMS LES Equitable Funding,LOCAL ENHANCED SERVICES,PORTER BROOK MEDICAL CENTRE,38411274,25482,S11 8HN
Department of Health,NHS Sheffield CCG,31/10/2021,C&M-PMS Contract Value,PRC DELEGATED CO-COMMISSIONING,PORTER BROOK MEDICAL CENTRE,38407071,-4011.43,S11 8HN
Department of Health,NHS Sheffield CCG,31/10/2021,C&M-PMS GP Statutory Levy,PRC DELEGATED CO-COMMISSIONING,PORTER BROOK MEDICAL CENTRE,38407071,-997.61,S11 8HN
Department of Health,NHS Sheffield CCG,31/10/2021,C&M-PMS Out of Hours Opt Outs,PRC DELEGATED CO-COMMISSIONING,PORTER BROOK MEDICAL CENTRE,38407071,-7856.53,S11 8HN
Department of Health,NHS Sheffield CCG,31/10/2021,C&M-PMS Prem Notional Rent,PRC DELEGATED CO-COMMISSIONING,PORTER BROOK MEDICAL CENTRE,38407071,-1666.67,S11 8HN
Department of Health,NHS Sheffield CCG,31/10/2021,C&M-PMS Contract Value,PRC DELEGATED CO-COMMISSIONING,PORTER BROOK MEDICAL CENTRE,38426522,167407.36,S11 8HN
Department of Health,NHS Sheffield CCG,31/10/2021,C&M-PMS Funding Differential Review,PRC DELEGATED CO-COMMISSIONING,PORTER BROOK MEDICAL CENTRE,38426522,3636.27,S11 8HN
Department of Health,NHS Sheffield CCG,31/10/2021,C&M-PMS LONG COVID ES,PRC DELEGATED CO-COMMISSIONING,PORTER BROOK MEDICAL CENTRE,38426522,4756.39,S11 8HN
Department of Health,NHS Sheffield CCG,31/10/2021,C&M-PMS Out of Hours Opt Outs,PRC DELEGATED CO-COMMISSIONING,PORTER BROOK MEDICAL CENTRE,38426522,147.99,S11 8HN
Department of Health,NHS Sheffield CCG,31/10/2021,C&M-PMS PCN DES Participation,PRC DELEGATED CO-COMMISSIONING,PORTER BROOK MEDICAL CENTRE,38426522,3019.37,S11 8HN
Department of Health,NHS Sheffield CCG,31/10/2021,C&M-PMS PCO Other,PRC DELEGATED CO-COMMISSIONING,PORTER BROOK MEDICAL CENTRE,38426522,1695.4,S11 8HN
Department of Health,NHS Sheffield CCG,31/10/2021,C&M-PMS Prem Actual Rent,PRC DELEGATED CO-COMMISSIONING,PORTER BROOK MEDICAL CENTRE,38426522,1666.67,S11 8HN
Department of Health,NHS Sheffield CCG,31/10/2021,C&M-PMS Prem Notional Rent,PRC DELEGATED CO-COMMISSIONING,PORTER BROOK MEDICAL CENTRE,38426522,11600.01,S11 8HN
Department of Health,NHS Sheffield CCG,31/10/2021,C&M-PMS Prem Rates,PRC DELEGATED CO-COMMISSIONING,PORTER BROOK MEDICAL CENTRE,38426522,1812,S11 8HN
Department of Health,NHS Sheffield CCG,31/10/2021,C&M-PMS Prem Water Rates,PRC DELEGATED CO-COMMISSIONING,PORTER BROOK MEDICAL CENTRE,38426522,300.81,S11 8HN
Department of Health,NHS Sheffield CCG,31/10/2021,C&M-PMS QOF Aspiration,PRC DELEGATED CO-COMMISSIONING,PORTER BROOK MEDICAL CENTRE,38426522,11138.7,S11 8HN
Department of Health,NHS Sheffield CCG,31/10/2021,Clinical&Medical-Commercial Sector,PATIENT TRANSPORT,PREMIER CARE DIRECT LTD,38408016,112480.55,DN4 5NU
Department of Health,NHS Sheffield CCG,31/10/2021,Participation Fees,BEREAVEMENT SERVICE,PRIMARY CARE DONCASTER LTD,38464493,79000,DN4 8QN
Department of Health,NHS Sheffield CCG,31/10/2021,Participation Fees,BEREAVEMENT SERVICE,PRIMARY CARE DONCASTER LTD,38631045,94851.29,DN4 8QN
Department of Health,NHS Sheffield CCG,31/10/2021,C&M-APMS DES Extended Hours Access,GP FORWARD VIEW,PRIMARY CARE SHEFFIELD LTD,38408022,309441.67,S12 3GH
Department of Health,NHS Sheffield CCG,31/10/2021,C&M-APMS DES Immediate&1st Response,LOCAL ENHANCED SERVICES,PRIMARY CARE SHEFFIELD LTD,38368168,44271.32,S12 3GH
Department of Health,NHS Sheffield CCG,31/10/2021,C&M-GMS LES Basket of Procedures,LOCAL ENHANCED SERVICES,PRIMARY CARE SHEFFIELD LTD,38408023,53558.33,S12 3GH
Department of Health,NHS Sheffield CCG,31/10/2021,C&M- PCN DES CARE COORDINATOR,PRC DELEGATED CO-COMMISSIONING,PRIMARY CARE SHEFFIELD LTD,38367918,1986.94,S9 4EU
Department of Health,NHS Sheffield CCG,31/10/2021,C&M-GMS C&M-APMS PCN DES Physician Assoc,PRC DELEGATED CO-COMMISSIONING,PRIMARY CARE SHEFFIELD LTD,38367918,8623.18,S9 4EU
Department of Health,NHS Sheffield CCG,31/10/2021,C&M-GMS PCN DES Clin Pharmacist,PRC DELEGATED CO-COMMISSIONING,PRIMARY CARE SHEFFIELD LTD,38367918,9901.48,S9 4EU
Department of Health,NHS Sheffield CCG,31/10/2021,C&M-GMS PCN DES Physiotherapist,PRC DELEGATED CO-COMMISSIONING,PRIMARY CARE SHEFFIELD LTD,38367918,3376.79,S9 4EU
Department of Health,NHS Sheffield CCG,31/10/2021,C&M-GMS PCN DES Soc Prescribing,PRC DELEGATED CO-COMMISSIONING,PRIMARY CARE SHEFFIELD LTD,38367918,5258.69,S9 4EU
Department of Health,NHS Sheffield CCG,31/10/2021,C&M-PCN DES PHARMACY TECHNICIANS,PRC DELEGATED CO-COMMISSIONING,PRIMARY CARE SHEFFIELD LTD,38367918,2028.45,S9 4EU
Department of Health,NHS Sheffield CCG,31/10/2021,C&M-GMS C&M-APMS PCN DES Physician Assoc,PRC DELEGATED CO-COMMISSIONING,PRIMARY CARE SHEFFIELD LTD,38367976,4355.7,S9 4EU
Department of Health,NHS Sheffield CCG,31/10/2021,C&M-GMS PCN DES Clin Pharmacist,PRC DELEGATED CO-COMMISSIONING,PRIMARY CARE SHEFFIELD LTD,38367976,11406.08,S9 4EU
Department of Health,NHS Sheffield CCG,31/10/2021,C&M-GMS PCN DES Home/RR paramedic,PRC DELEGATED CO-COMMISSIONING,PRIMARY CARE SHEFFIELD LTD,38367976,4557.85,S9 4EU
Department of Health,NHS Sheffield CCG,31/10/2021,C&M-GMS PCN DES Physiotherapist,PRC DELEGATED CO-COMMISSIONING,PRIMARY CARE SHEFFIELD LTD,38367976,4735.75,S9 4EU
Department of Health,NHS Sheffield CCG,31/10/2021,C&M-GMS PCN DES Soc Prescribing,PRC DELEGATED CO-COMMISSIONING,PRIMARY CARE SHEFFIELD LTD,38367976,5616.6,S9 4EU
Department of Health,NHS Sheffield CCG,31/10/2021,C&M-PCN DES Adult Mental Health Practitioner,PRC DELEGATED CO-COMMISSIONING,PRIMARY CARE SHEFFIELD LTD,38367976,2285.08,S9 4EU
Department of Health,NHS Sheffield CCG,31/10/2021,C&M-PCN DES OCCUPATIONAL THERAPISTS,PRC DELEGATED CO-COMMISSIONING,PRIMARY CARE SHEFFIELD LTD,38367976,4267.1,S9 4EU
Department of Health,NHS Sheffield CCG,31/10/2021,C&M-PCN DES PHARMACY TECHNICIANS,PRC DELEGATED CO-COMMISSIONING,PRIMARY CARE SHEFFIELD LTD,38367976,3009.5,S9 4EU
Department of Health,NHS Sheffield CCG,31/10/2021,C&M-GMS PCN DES Clin Pharmacist,PRC DELEGATED CO-COMMISSIONING,PRIMARY CARE SHEFFIELD LTD,38368032,14529.64,S9 4EU
Department of Health,NHS Sheffield CCG,31/10/2021,C&M-GMS PCN DES Home/RR paramedic,PRC DELEGATED CO-COMMISSIONING,PRIMARY CARE SHEFFIELD LTD,38368032,4429.4,S9 4EU
Department of Health,NHS Sheffield CCG,31/10/2021,C&M-GMS PCN DES Physiotherapist,PRC DELEGATED CO-COMMISSIONING,PRIMARY CARE SHEFFIELD LTD,38368032,4667.5,S9 4EU
Department of Health,NHS Sheffield CCG,31/10/2021,C&M-GMS PCN DES Soc Prescribing,PRC DELEGATED CO-COMMISSIONING,PRIMARY CARE SHEFFIELD LTD,38368032,5844,S9 4EU
Department of Health,NHS Sheffield CCG,31/10/2021,C&M-GMS C&M-APMS PCN DES Physician Assoc,PRC DELEGATED CO-COMMISSIONING,PRIMARY CARE SHEFFIELD LTD,38368039,12063.24,S9 4EU
Department of Health,NHS Sheffield CCG,31/10/2021,C&M-GMS PCN DES Clin Pharmacist,PRC DELEGATED CO-COMMISSIONING,PRIMARY CARE SHEFFIELD LTD,38368039,7726.54,S9 4EU
Department of Health,NHS Sheffield CCG,31/10/2021,C&M-GMS PCN DES Soc Prescribing,PRC DELEGATED CO-COMMISSIONING,PRIMARY CARE SHEFFIELD LTD,38368039,2333.33,S9 4EU
Department of Health,NHS Sheffield CCG,31/10/2021,C&M-PCN DES PHARMACY TECHNICIANS,PRC DELEGATED CO-COMMISSIONING,PRIMARY CARE SHEFFIELD LTD,38368039,5220.6,S9 4EU
Department of Health,NHS Sheffield CCG,31/10/2021,C&M-PCN DES Trainee Nursing Associate,PRC DELEGATED CO-COMMISSIONING,PRIMARY CARE SHEFFIELD LTD,38368039,2006.52,S9 4EU
Department of Health,NHS Sheffield CCG,31/10/2021,C&M- PCN DES CARE COORDINATOR,PRC DELEGATED CO-COMMISSIONING,PRIMARY CARE SHEFFIELD LTD,38475113,1657.44,S9 4EU
Department of Health,NHS Sheffield CCG,31/10/2021,C&M-GMS PCN DES Clin Pharmacist,PRC DELEGATED CO-COMMISSIONING,PRIMARY CARE SHEFFIELD LTD,38475113,14207.25,S9 4EU
Department of Health,NHS Sheffield CCG,31/10/2021,C&M-GMS PCN DES Physiotherapist,PRC DELEGATED CO-COMMISSIONING,PRIMARY CARE SHEFFIELD LTD,38475113,2615.31,S9 4EU
Department of Health,NHS Sheffield CCG,31/10/2021,C&M-GMS PCN DES Soc Prescribing,PRC DELEGATED CO-COMMISSIONING,PRIMARY CARE SHEFFIELD LTD,38475113,2699.91,S9 4EU
Department of Health,NHS Sheffield CCG,31/10/2021,C&M-PCN DES Adult Mental Health Practitioner,PRC DELEGATED CO-COMMISSIONING,PRIMARY CARE SHEFFIELD LTD,38475113,2264.24,S9 4EU
Department of Health,NHS Sheffield CCG,31/10/2021,C&M-PCN DES Trainee Nursing Associate,PRC DELEGATED CO-COMMISSIONING,PRIMARY CARE SHEFFIELD LTD,38475113,2042.32,S9 4EU
Department of Health,NHS Sheffield CCG,31/10/2021,C&M-GMS C&M-APMS PCN DES Physician Assoc,PRC DELEGATED CO-COMMISSIONING,PRIMARY CARE SHEFFIELD LTD,38596790,5962.01,S9 4EU
Department of Health,NHS Sheffield CCG,31/10/2021,C&M-GMS PCN DES Clin Pharmacist,PRC DELEGATED CO-COMMISSIONING,PRIMARY CARE SHEFFIELD LTD,38596790,13987.09,S9 4EU
Department of Health,NHS Sheffield CCG,31/10/2021,C&M-GMS PCN DES Physiotherapist,PRC DELEGATED CO-COMMISSIONING,PRIMARY CARE SHEFFIELD LTD,38596790,9471.5,S9 4EU
Department of Health,NHS Sheffield CCG,31/10/2021,C&M-GMS PCN DES Soc Prescribing,PRC DELEGATED CO-COMMISSIONING,PRIMARY CARE SHEFFIELD LTD,38596790,5715,S9 4EU
Department of Health,NHS Sheffield CCG,31/10/2021,C&M-PCN DES DIETICIANS,PRC DELEGATED CO-COMMISSIONING,PRIMARY CARE SHEFFIELD LTD,38596790,4160.08,S9 4EU
Department of Health,NHS Sheffield CCG,31/10/2021,C&M-PCN DES HEALTH AND WELLBEING COACH,PRC DELEGATED CO-COMMISSIONING,PRIMARY CARE SHEFFIELD LTD,38596790,1660.28,S9 4EU
Department of Health,NHS Sheffield CCG,31/10/2021,C&M-PCN DES PHARMACY TECHNICIANS,PRC DELEGATED CO-COMMISSIONING,PRIMARY CARE SHEFFIELD LTD,38596790,3009.5,S9 4EU
Department of Health,NHS Sheffield CCG,31/10/2021,C&M- PCN DES Nursing Associate,PRC DELEGATED CO-COMMISSIONING,PRIMARY CARE SHEFFIELD LTD,38596805,1983.15,S9 4EU
Department of Health,NHS Sheffield CCG,31/10/2021,C&M-GMS C&M-APMS PCN DES Physician Assoc,PRC DELEGATED CO-COMMISSIONING,PRIMARY CARE SHEFFIELD LTD,38596805,8653.65,S9 4EU
Department of Health,NHS Sheffield CCG,31/10/2021,C&M-GMS PCN DES Clin Pharmacist,PRC DELEGATED CO-COMMISSIONING,PRIMARY CARE SHEFFIELD LTD,38596805,20225.21,S9 4EU
Department of Health,NHS Sheffield CCG,31/10/2021,C&M-GMS PCN DES Physiotherapist,PRC DELEGATED CO-COMMISSIONING,PRIMARY CARE SHEFFIELD LTD,38596805,8540,S9 4EU
Department of Health,NHS Sheffield CCG,31/10/2021,C&M-GMS PCN DES Soc Prescribing,PRC DELEGATED CO-COMMISSIONING,PRIMARY CARE SHEFFIELD LTD,38596805,2717.68,S9 4EU
Department of Health,NHS Sheffield CCG,31/10/2021,C&M-PMS Contract Value,PRC DELEGATED CO-COMMISSIONING,RICHMOND MEDICAL CENTRE,38426517,73559.23,S13 8NA
Department of Health,NHS Sheffield CCG,31/10/2021,C&M-PMS DES Learn Dsblty Hlth Chk,PRC DELEGATED CO-COMMISSIONING,RICHMOND MEDICAL CENTRE,38426517,560,S13 8NA
Department of Health,NHS Sheffield CCG,31/10/2021,C&M-PMS LONG COVID ES,PRC DELEGATED CO-COMMISSIONING,RICHMOND MEDICAL CENTRE,38426517,1520.11,S13 8NA
Department of Health,NHS Sheffield CCG,31/10/2021,C&M-PMS PCN DES Participation,PRC DELEGATED CO-COMMISSIONING,RICHMOND MEDICAL CENTRE,38426517,1317.91,S13 8NA
Department of Health,NHS Sheffield CCG,31/10/2021,C&M-PMS PCO Other,PRC DELEGATED CO-COMMISSIONING,RICHMOND MEDICAL CENTRE,38426517,576.4,S13 8NA
Department of Health,NHS Sheffield CCG,31/10/2021,C&M-PMS Prem Notional Rent,PRC DELEGATED CO-COMMISSIONING,RICHMOND MEDICAL CENTRE,38426517,6429.17,S13 8NA
Department of Health,NHS Sheffield CCG,31/10/2021,C&M-PMS Prem Rates,PRC DELEGATED CO-COMMISSIONING,RICHMOND MEDICAL CENTRE,38426517,1098,S13 8NA
Department of Health,NHS Sheffield CCG,31/10/2021,C&M-PMS QOF Aspiration,PRC DELEGATED CO-COMMISSIONING,RICHMOND MEDICAL CENTRE,38426517,8858.87,S13 8NA
Department of Health,NHS Sheffield CCG,31/10/2021,Cont Care-Physical Disab (<65),CHC ADULT FULLY FUNDED,ROSEBERRY CARE CENTRES,38480148,30337.9,S35 2XF
Department of Health,NHS Sheffield CCG,31/10/2021,Cont Care-Physical Disab (<65),CHC ADULT FULLY FUNDED,ROSEBERRY CARE CENTRES,38480149,40193.87,S5 6AB
Department of Health,NHS Sheffield CCG,31/10/2021,Cont Care-Physical Disab (<65),CHC ADULT FULLY FUNDED,ROSEBERRY CARE CENTRES,38480158,28727.8,S4 7AJ
Department of Health,NHS Sheffield CCG,31/10/2021,Cont Care-Funded Nursing Care Allow,FUNDED NURSING CARE,ROSEBERRY CARE CENTRES,38480076,35089.06,S5 6AB
Department of Health,NHS Sheffield CCG,31/10/2021,Participation Fees,BEREAVEMENT SERVICE,ROTHERHAM DONCASTER AND SOUTH HUMBER NHS FOUNDATION TRUST,38326474,-33139,DN4 8QN
Department of Health,NHS Sheffield CCG,31/10/2021,Hcare Srv Rec Fdtn Trust-Contract Baseline,ACUTE COMMISSIONING,ROTHERHAM NHS FOUNDATION TRUST,38467813,694618,S60 2UD
Department of Health,NHS Sheffield CCG,31/10/2021,Participation Fees,BEREAVEMENT SERVICE,ROTHERHAM NHS FOUNDATION TRUST,38574216,1026728,S60 2UD
Department of Health,NHS Sheffield CCG,31/10/2021,Participation Fees,BEREAVEMENT SERVICE,ROTHERHAM NHS FOUNDATION TRUST,38631059,38862.37,S60 2UD
Department of Health,NHS Sheffield CCG,31/10/2021,Participation Fees,BEREAVEMENT SERVICE,ROTHERHAM NHS FOUNDATION TRUST,38631072,96342,S60 2UD
Department of Health,NHS Sheffield CCG,31/10/2021,C&M-PMS Contract Value,PRC DELEGATED CO-COMMISSIONING,RUSTLINGS ROAD MEDICAL CENTRE,38426516,30976.46,S11 7AB
Department of Health,NHS Sheffield CCG,31/10/2021,C&M-PMS Funding Differential Review,PRC DELEGATED CO-COMMISSIONING,RUSTLINGS ROAD MEDICAL CENTRE,38426516,565.04,S11 7AB
Department of Health,NHS Sheffield CCG,31/10/2021,C&M-PMS LONG COVID ES,PRC DELEGATED CO-COMMISSIONING,RUSTLINGS ROAD MEDICAL CENTRE,38426516,772.51,S11 7AB
Department of Health,NHS Sheffield CCG,31/10/2021,C&M-PMS PCN DES Participation,PRC DELEGATED CO-COMMISSIONING,RUSTLINGS ROAD MEDICAL CENTRE,38426516,544.7,S11 7AB
Department of Health,NHS Sheffield CCG,31/10/2021,C&M-PMS PCO Other,PRC DELEGATED CO-COMMISSIONING,RUSTLINGS ROAD MEDICAL CENTRE,38426516,317.8,S11 7AB
Department of Health,NHS Sheffield CCG,31/10/2021,C&M-PMS Prem Notional Rent,PRC DELEGATED CO-COMMISSIONING,RUSTLINGS ROAD MEDICAL CENTRE,38426516,1341.67,S11 7AB
Department of Health,NHS Sheffield CCG,31/10/2021,C&M-PMS QOF Aspiration,PRC DELEGATED CO-COMMISSIONING,RUSTLINGS ROAD MEDICAL CENTRE,38426516,3139.32,S11 7AB
Department of Health,NHS Sheffield CCG,31/10/2021,Cont Care-Physical Disab (<65),CHC ADULT FULLY FUNDED,SCARSDALE GRANGE NURSING HOME,38480140,63203.15,S8 9EQ
Department of Health,NHS Sheffield CCG,31/10/2021,C&M-PMS Contract Value,PRC DELEGATED CO-COMMISSIONING,SELBORNE ROAD MEDICAL CENTRE,38426519,20182.76,S10 5ND
Department of Health,NHS Sheffield CCG,31/10/2021,C&M-PMS Funding Differential Review,PRC DELEGATED CO-COMMISSIONING,SELBORNE ROAD MEDICAL CENTRE,38426519,478.42,S10 5ND
Department of Health,NHS Sheffield CCG,31/10/2021,C&M-PMS LONG COVID ES,PRC DELEGATED CO-COMMISSIONING,SELBORNE ROAD MEDICAL CENTRE,38426519,432.51,S10 5ND
Department of Health,NHS Sheffield CCG,31/10/2021,C&M-PMS Out of Hours Opt Outs,PRC DELEGATED CO-COMMISSIONING,SELBORNE ROAD MEDICAL CENTRE,38426519,8.8,S10 5ND
Department of Health,NHS Sheffield CCG,31/10/2021,C&M-PMS PCN DES Participation,PRC DELEGATED CO-COMMISSIONING,SELBORNE ROAD MEDICAL CENTRE,38426519,363.66,S10 5ND
Department of Health,NHS Sheffield CCG,31/10/2021,C&M-PMS PCO Other,PRC DELEGATED CO-COMMISSIONING,SELBORNE ROAD MEDICAL CENTRE,38426519,200.5,S10 5ND
Department of Health,NHS Sheffield CCG,31/10/2021,C&M-PMS Prem Notional Rent,PRC DELEGATED CO-COMMISSIONING,SELBORNE ROAD MEDICAL CENTRE,38426519,1735.42,S10 5ND
Department of Health,NHS Sheffield CCG,31/10/2021,C&M-PMS Prem Rates,PRC DELEGATED CO-COMMISSIONING,SELBORNE ROAD MEDICAL CENTRE,38426519,611,S10 5ND
Department of Health,NHS Sheffield CCG,31/10/2021,C&M-PMS QOF Aspiration,PRC DELEGATED CO-COMMISSIONING,SELBORNE ROAD MEDICAL CENTRE,38426519,2229.73,S10 5ND
Department of Health,NHS Sheffield CCG,31/10/2021,Cont Care-Physical Disab (<65),CHC ADULT FULLY FUNDED,SEVEN HILLS NURSING HOME,38480141,46088.65,S11 9AA
Department of Health,NHS Sheffield CCG,31/10/2021,C&M-GMS Global Sum,PRC DELEGATED CO-COMMISSIONING,SHARROW LANE MEDICAL CENTRE,38612403,26720.16,S11 8AN
Department of Health,NHS Sheffield CCG,31/10/2021,C&M-GMS LONG COVID ES,PRC DELEGATED CO-COMMISSIONING,SHARROW LANE MEDICAL CENTRE,38612403,678.35,S11 8AN
Department of Health,NHS Sheffield CCG,31/10/2021,C&M-GMS PCN DES Participation,PRC DELEGATED CO-COMMISSIONING,SHARROW LANE MEDICAL CENTRE,38612403,500.68,S11 8AN
Department of Health,NHS Sheffield CCG,31/10/2021,C&M-GMS Prem Notional Rent,PRC DELEGATED CO-COMMISSIONING,SHARROW LANE MEDICAL CENTRE,38612403,2741.67,S11 8AN
Department of Health,NHS Sheffield CCG,31/10/2021,C&M-GMS QOF Aspiration,PRC DELEGATED CO-COMMISSIONING,SHARROW LANE MEDICAL CENTRE,38612403,2983.54,S11 8AN
Department of Health,NHS Sheffield CCG,31/10/2021,Hcare Srv Rec Fdtn Trust-Non Contract,ACUTE CHILDRENS SERVICES,SHEFFIELD CHILDRENS NHS FOUNDATION TRUST,38300226,123000,S10 2TH
Department of Health,NHS Sheffield CCG,31/10/2021,Hcare Srv Rec Fdtn Trust-Contract Baseline,ACUTE CHILDRENS SERVICES,SHEFFIELD CHILDRENS NHS FOUNDATION TRUST,38467807,4107958,S10 2TH
Department of Health,NHS Sheffield CCG,31/10/2021,Hcare Srv Rec Fdtn Trust-Contract Baseline,ACUTE CHILDRENS SERVICES,SHEFFIELD CHILDRENS NHS FOUNDATION TRUST,38467808,2583250,S10 2TH
Department of Health,NHS Sheffield CCG,31/10/2021,Participation Fees,BEREAVEMENT SERVICE,SHEFFIELD CHILDRENS NHS FOUNDATION TRUST,38329480,7000,S10 2TH
Department of Health,NHS Sheffield CCG,31/10/2021,Participation Fees,BEREAVEMENT SERVICE,SHEFFIELD CHILDRENS NHS FOUNDATION TRUST,38425286,835364,S10 2TH
Department of Health,NHS Sheffield CCG,31/10/2021,Participation Fees,BEREAVEMENT SERVICE,SHEFFIELD CHILDRENS NHS FOUNDATION TRUST,38501841,40000,S10 2TH
Department of Health,NHS Sheffield CCG,31/10/2021,Participation Fees,BEREAVEMENT SERVICE,SHEFFIELD CHILDRENS NHS FOUNDATION TRUST,38574076,654860,S10 2TH
Department of Health,NHS Sheffield CCG,31/10/2021,Participation Fees,CLINICAL LEADS,SHEFFIELD CHILDRENS NHS FOUNDATION TRUST,38329480,35000,S10 2TH
Department of Health,NHS Sheffield CCG,31/10/2021,Cont Care-Physical Disab (65+),CHC ADULT FULLY FUNDED,SHEFFIELD CITY COUNCIL,38451934,1155986.23,S1 1UJ
Department of Health,NHS Sheffield CCG,31/10/2021,Cont Care-Physical Disab (65+),CHC ADULT FULLY FUNDED,SHEFFIELD CITY COUNCIL,38465718,62941.09,S1 1UJ
Department of Health,NHS Sheffield CCG,31/10/2021,Cont Care- Prior Year Payments,CHC ADULT FULLY FUNDED,SHEFFIELD CITY COUNCIL,38630975,196734.09,S1 2HH
Department of Health,NHS Sheffield CCG,31/10/2021,Cont Care- Children,CHC CHILDREN,SHEFFIELD CITY COUNCIL,38451937,133323.25,S1 1UJ
Department of Health,NHS Sheffield CCG,31/10/2021,Soc Care-Other Soc Care,COMMISSIONING - NON ACUTE,SHEFFIELD CITY COUNCIL,38465718,1635250,S1 1UJ
Department of Health,NHS Sheffield CCG,31/10/2021,Clinical&Medical-Othe Public Sector,COMMUNITY SERVICES,SHEFFIELD CITY COUNCIL,38465718,150416.7,S1 1UJ
Department of Health,NHS Sheffield CCG,31/10/2021,Soc Care-Support Prim Care,COMMUNITY SERVICES,SHEFFIELD CITY COUNCIL,38465718,64166.67,S1 1UJ
Department of Health,NHS Sheffield CCG,31/10/2021,Soc Care-Joint H&C Teams/Working,INTERMEDIATE CARE,SHEFFIELD CITY COUNCIL,38465718,151447.58,S1 1UJ
Department of Health,NHS Sheffield CCG,31/10/2021,Clinical&Medical-Othe Public Sector,MENTAL HEALTH SERVICES - COLLABORATIVE COMMISSIONING,SHEFFIELD CITY COUNCIL,38465718,83669.09,S1 1UJ
Department of Health,NHS Sheffield CCG,31/10/2021,Clinical&Medical-Othe Public Sector,REABLEMENT,SHEFFIELD CITY COUNCIL,38465718,21808.67,S1 1UJ
Department of Health,NHS Sheffield CCG,31/10/2021,Clinical&Medical-Othe Public Sector,SAFEGUARDING,SHEFFIELD CITY COUNCIL,38465718,16596.33,S1 1UJ
Department of Health,NHS Sheffield CCG,31/10/2021,Clinical&Medical-Voluntary Sector,CHILD AND ADOLESCENT MENTAL HEALTH,SHEFFIELD FUTURES,38465060,25600.01,S1 4GE
Department of Health,NHS Sheffield CCG,31/10/2021,Hcare Srv Rec Fdtn Trust-Contract Baseline,MENTAL HEALTH CONTRACTS,SHEFFIELD HEALTH & SOCIAL CARE NHS FOUNDATION TRUST,38467809,1051291,S10 3TH
Department of Health,NHS Sheffield CCG,31/10/2021,Hcare Srv Rec Fdtn Trust-Contract Baseline,MENTAL HEALTH CONTRACTS,SHEFFIELD HEALTH & SOCIAL CARE NHS FOUNDATION TRUST,38467810,8570087,S10 3TH
Department of Health,NHS Sheffield CCG,31/10/2021,Clinical&Medical-Voluntary Sector,MENTAL HEALTH SERVICES - COLLABORATIVE COMMISSIONING,SHEFFIELD MIND,38380293,25608.83,S11 8AL
Department of Health,NHS Sheffield CCG,31/10/2021,Hcare Srv Rec Fdtn Trust-Contract Baseline,ACUTE COMMISSIONING,SHEFFIELD TEACHING HOSPITALS NHS FOUNDATION TRUST,38464575,710990,S5 7AU
Department of Health,NHS Sheffield CCG,31/10/2021,Hcare Srv Rec Fdtn Trust-Contract Baseline,ACUTE COMMISSIONING,SHEFFIELD TEACHING HOSPITALS NHS FOUNDATION TRUST,38467811,42180842,S5 7AU
Department of Health,NHS Sheffield CCG,31/10/2021,Hcare Srv Rec Fdtn Trust-Contract Baseline,ACUTE COMMISSIONING,SHEFFIELD TEACHING HOSPITALS NHS FOUNDATION TRUST,38467812,7893730,S5 7AU
Department of Health,NHS Sheffield CCG,31/10/2021,Participation Fees,BEREAVEMENT SERVICE,SHEFFIELD TEACHING HOSPITALS NHS FOUNDATION TRUST,38425250,43000,S5 7AU
Department of Health,NHS Sheffield CCG,31/10/2021,Participation Fees,BEREAVEMENT SERVICE,SHEFFIELD TEACHING HOSPITALS NHS FOUNDATION TRUST,38425297,2082739,S5 7AU
Department of Health,NHS Sheffield CCG,31/10/2021,C&M-GMS DES Learn Dsblty Hlth Chk,PRC DELEGATED CO-COMMISSIONING,SHIREGREEN MEDICAL CENTRE,38612411,420,S5 0RG
Department of Health,NHS Sheffield CCG,31/10/2021,C&M-GMS DES Minor Surgery,PRC DELEGATED CO-COMMISSIONING,SHIREGREEN MEDICAL CENTRE,38612411,160,S5 0RG
Department of Health,NHS Sheffield CCG,31/10/2021,C&M-GMS Global Sum,PRC DELEGATED CO-COMMISSIONING,SHIREGREEN MEDICAL CENTRE,38612411,60503.34,S5 0RG
Department of Health,NHS Sheffield CCG,31/10/2021,C&M-GMS LONG COVID ES,PRC DELEGATED CO-COMMISSIONING,SHIREGREEN MEDICAL CENTRE,38612411,1270.8,S5 0RG
Department of Health,NHS Sheffield CCG,31/10/2021,C&M-GMS PCN DES Participation,PRC DELEGATED CO-COMMISSIONING,SHIREGREEN MEDICAL CENTRE,38612411,1161.13,S5 0RG
Department of Health,NHS Sheffield CCG,31/10/2021,C&M-GMS Prem Cost Rent,PRC DELEGATED CO-COMMISSIONING,SHIREGREEN MEDICAL CENTRE,38612411,1792.33,S5 0RG
Department of Health,NHS Sheffield CCG,31/10/2021,C&M-GMS Prem Notional Rent,PRC DELEGATED CO-COMMISSIONING,SHIREGREEN MEDICAL CENTRE,38612411,5375,S5 0RG
Department of Health,NHS Sheffield CCG,31/10/2021,C&M-GMS Prem Rates,PRC DELEGATED CO-COMMISSIONING,SHIREGREEN MEDICAL CENTRE,38612411,1868,S5 0RG
Department of Health,NHS Sheffield CCG,31/10/2021,C&M-GMS QOF Aspiration,PRC DELEGATED CO-COMMISSIONING,SHIREGREEN MEDICAL CENTRE,38612411,7267.46,S5 0RG
Department of Health,NHS Sheffield CCG,31/10/2021,C&M-PMS Contract Value,PRC DELEGATED CO-COMMISSIONING,SLOAN MEDICAL CENTRE,38426530,102415.14,S8 0YH
Department of Health,NHS Sheffield CCG,31/10/2021,C&M-PMS DES Learn Dsblty Hlth Chk,PRC DELEGATED CO-COMMISSIONING,SLOAN MEDICAL CENTRE,38426530,280,S8 0YH
Department of Health,NHS Sheffield CCG,31/10/2021,C&M-PMS LONG COVID ES,PRC DELEGATED CO-COMMISSIONING,SLOAN MEDICAL CENTRE,38426530,2224.84,S8 0YH
Department of Health,NHS Sheffield CCG,31/10/2021,C&M-PMS Out of Hours Opt Outs,PRC DELEGATED CO-COMMISSIONING,SLOAN MEDICAL CENTRE,38426530,5.59,S8 0YH
Department of Health,NHS Sheffield CCG,31/10/2021,C&M-PMS PCN DES Participation,PRC DELEGATED CO-COMMISSIONING,SLOAN MEDICAL CENTRE,38426530,1849.06,S8 0YH
Department of Health,NHS Sheffield CCG,31/10/2021,C&M-PMS PCO Other,PRC DELEGATED CO-COMMISSIONING,SLOAN MEDICAL CENTRE,38426530,819.8,S8 0YH
Department of Health,NHS Sheffield CCG,31/10/2021,C&M-PMS Prem Actual Rent,PRC DELEGATED CO-COMMISSIONING,SLOAN MEDICAL CENTRE,38426530,47912.5,S8 0YH
Department of Health,NHS Sheffield CCG,31/10/2021,C&M-PMS Prem Notional Rent,PRC DELEGATED CO-COMMISSIONING,SLOAN MEDICAL CENTRE,38426530,747.5,S8 0YH
Department of Health,NHS Sheffield CCG,31/10/2021,C&M-PMS QOF Aspiration,PRC DELEGATED CO-COMMISSIONING,SLOAN MEDICAL CENTRE,38426530,11094.95,S8 0YH
Department of Health,NHS Sheffield CCG,31/10/2021,Professional Fees,BEREAVEMENT SERVICE,SME HCI LTD,38408035,26400,GU9 7UD
Department of Health,NHS Sheffield CCG,31/10/2021,C&M-PMS Contract Value,PRC DELEGATED CO-COMMISSIONING,SOTHALL MEDICAL CENTRE,38426531,75689.4,S20 1HQ
Department of Health,NHS Sheffield CCG,31/10/2021,C&M-PMS LONG COVID ES,PRC DELEGATED CO-COMMISSIONING,SOTHALL MEDICAL CENTRE,38426531,1664.05,S20 1HQ
Department of Health,NHS Sheffield CCG,31/10/2021,C&M-PMS Out of Hours Opt Outs,PRC DELEGATED CO-COMMISSIONING,SOTHALL MEDICAL CENTRE,38426531,28.46,S20 1HQ
Department of Health,NHS Sheffield CCG,31/10/2021,C&M-PMS PCN DES Participation,PRC DELEGATED CO-COMMISSIONING,SOTHALL MEDICAL CENTRE,38426531,1370.05,S20 1HQ
Department of Health,NHS Sheffield CCG,31/10/2021,C&M-PMS PCO Other,PRC DELEGATED CO-COMMISSIONING,SOTHALL MEDICAL CENTRE,38426531,626.1,S20 1HQ
Department of Health,NHS Sheffield CCG,31/10/2021,C&M-PMS Prem Notional Rent,PRC DELEGATED CO-COMMISSIONING,SOTHALL MEDICAL CENTRE,38426531,10094.67,S20 1HQ
Department of Health,NHS Sheffield CCG,31/10/2021,C&M-PMS Prem Rates,PRC DELEGATED CO-COMMISSIONING,SOTHALL MEDICAL CENTRE,38426531,617,S20 1HQ
Department of Health,NHS Sheffield CCG,31/10/2021,C&M-PMS Prem Water Rates,PRC DELEGATED CO-COMMISSIONING,SOTHALL MEDICAL CENTRE,38426531,218.74,S20 1HQ
Department of Health,NHS Sheffield CCG,31/10/2021,C&M-PMS QOF Aspiration,PRC DELEGATED CO-COMMISSIONING,SOTHALL MEDICAL CENTRE,38426531,9478.91,S20 1HQ
Department of Health,NHS Sheffield CCG,31/10/2021,Participation Fees,BEREAVEMENT SERVICE,SOUTH YORKSHIRE COMMUNITY FOUNDATION LTD,38574205,274000,S9 2RX
Department of Health,NHS Sheffield CCG,31/10/2021,Participation Fees,BEREAVEMENT SERVICE,SOUTH YORKSHIRE COMMUNITY FOUNDATION LTD,38631095,157500,S9 2RX
Department of Health,NHS Sheffield CCG,31/10/2021,Cont Care- Adult 100% Fully Funded,CHC ADULT FULLY FUNDED,SOUTH YORKSHIRE HOUSING ASSOCIATION LTD,38383252,25500,S1 4HF
Department of Health,NHS Sheffield CCG,31/10/2021,Cont Care- Adult 100% Fully Funded,CHC ADULT FULLY FUNDED,SOUTH YORKSHIRE HOUSING ASSOCIATION LTD,38383253,46763.59,S1 4HF
Department of Health,NHS Sheffield CCG,31/10/2021,Cont Care-Physical Disab (<65),CHC ADULT FULLY FUNDED,SOUTH YORKSHIRE HOUSING ASSOCIATION LTD,38480127,47156.52,S35 1RQ
Department of Health,NHS Sheffield CCG,31/10/2021,Clinical&Medical-Independent Sector,MENTAL HEALTH CONTRACTS,SOUTH YORKSHIRE HOUSING ASSOCIATION LTD,38383255,34434.83,S1 4HF
Department of Health,NHS Sheffield CCG,31/10/2021,C&M-PMS Contract Value,PRC DELEGATED CO-COMMISSIONING,SOUTHEY GREEN MEDICAL CENTRE,38426532,26049.77,S5 7QB
Department of Health,NHS Sheffield CCG,31/10/2021,C&M-PMS Funding Differential Review,PRC DELEGATED CO-COMMISSIONING,SOUTHEY GREEN MEDICAL CENTRE,38426532,612.28,S5 7QB
Department of Health,NHS Sheffield CCG,31/10/2021,C&M-PMS LONG COVID ES,PRC DELEGATED CO-COMMISSIONING,SOUTHEY GREEN MEDICAL CENTRE,38426532,476.69,S5 7QB
Department of Health,NHS Sheffield CCG,31/10/2021,C&M-PMS Out of Hours Opt Outs,PRC DELEGATED CO-COMMISSIONING,SOUTHEY GREEN MEDICAL CENTRE,38426532,28.68,S5 7QB
Department of Health,NHS Sheffield CCG,31/10/2021,C&M-PMS PCN DES Participation,PRC DELEGATED CO-COMMISSIONING,SOUTHEY GREEN MEDICAL CENTRE,38426532,470.48,S5 7QB
Department of Health,NHS Sheffield CCG,31/10/2021,C&M-PMS Prem Notional Rent,PRC DELEGATED CO-COMMISSIONING,SOUTHEY GREEN MEDICAL CENTRE,38426532,3362.5,S5 7QB
Department of Health,NHS Sheffield CCG,31/10/2021,C&M-PMS QOF Aspiration,PRC DELEGATED CO-COMMISSIONING,SOUTHEY GREEN MEDICAL CENTRE,38426532,2952.99,S5 7QB
Department of Health,NHS Sheffield CCG,31/10/2021,Clinical&Medical-Independent Sector,ACUTE COMMISSIONING,SPAMEDICA LTD,38356002,111340.67,BL1 1HU
Department of Health,NHS Sheffield CCG,31/10/2021,Clinical&Medical-Voluntary Sector,HOSPICES,ST LUKES HOSPICE,38300218,49700,S11 9NE
Department of Health,NHS Sheffield CCG,31/10/2021,Clinical&Medical-Voluntary Sector,HOSPICES,ST LUKES HOSPICE,38501851,30922.61,S11 9NE
Department of Health,NHS Sheffield CCG,31/10/2021,C&M-GMS DES Minor Surgery,PRC DELEGATED CO-COMMISSIONING,STANNINGTON MEDICAL CENTRE,38594737,40,S6 6BX
Department of Health,NHS Sheffield CCG,31/10/2021,C&M-GMS Global Sum,PRC DELEGATED CO-COMMISSIONING,STANNINGTON MEDICAL CENTRE,38594737,27444.65,S6 6BX
Department of Health,NHS Sheffield CCG,31/10/2021,C&M-GMS PCO Other,PRC DELEGATED CO-COMMISSIONING,STANNINGTON MEDICAL CENTRE,38594737,242,S6 6BX
Department of Health,NHS Sheffield CCG,31/10/2021,C&M-GMS Prem Notional Rent,PRC DELEGATED CO-COMMISSIONING,STANNINGTON MEDICAL CENTRE,38594737,2625,S6 6BX
Department of Health,NHS Sheffield CCG,31/10/2021,C&M-GMS Prem Rates,PRC DELEGATED CO-COMMISSIONING,STANNINGTON MEDICAL CENTRE,38594737,469,S6 6BX
Department of Health,NHS Sheffield CCG,31/10/2021,C&M-GMS QOF Aspiration,PRC DELEGATED CO-COMMISSIONING,STANNINGTON MEDICAL CENTRE,38594737,3194.14,S6 6BX
Department of Health,NHS Sheffield CCG,31/10/2021,C&M-GMS DES Minor Surgery,PRC DELEGATED CO-COMMISSIONING,STONECROFT MEDICAL CENTRE,38612408,720,S12 2LJ
Department of Health,NHS Sheffield CCG,31/10/2021,C&M-GMS Global Sum,PRC DELEGATED CO-COMMISSIONING,STONECROFT MEDICAL CENTRE,38612408,36235.62,S12 2LJ
Department of Health,NHS Sheffield CCG,31/10/2021,C&M-GMS LONG COVID ES,PRC DELEGATED CO-COMMISSIONING,STONECROFT MEDICAL CENTRE,38612408,692.53,S12 2LJ
Department of Health,NHS Sheffield CCG,31/10/2021,C&M-GMS PCN DES Participation,PRC DELEGATED CO-COMMISSIONING,STONECROFT MEDICAL CENTRE,38612408,680.92,S12 2LJ
Department of Health,NHS Sheffield CCG,31/10/2021,C&M-GMS PCO Other,PRC DELEGATED CO-COMMISSIONING,STONECROFT MEDICAL CENTRE,38612408,290.3,S12 2LJ
Department of Health,NHS Sheffield CCG,31/10/2021,C&M-GMS Prem Notional Rent,PRC DELEGATED CO-COMMISSIONING,STONECROFT MEDICAL CENTRE,38612408,2808.33,S12 2LJ
Department of Health,NHS Sheffield CCG,31/10/2021,C&M-GMS Prem Rates,PRC DELEGATED CO-COMMISSIONING,STONECROFT MEDICAL CENTRE,38612408,1235,S12 2LJ
Department of Health,NHS Sheffield CCG,31/10/2021,C&M-GMS Prem Water Rates,PRC DELEGATED CO-COMMISSIONING,STONECROFT MEDICAL CENTRE,38612408,183.54,S12 2LJ
Department of Health,NHS Sheffield CCG,31/10/2021,C&M-GMS QOF Aspiration,PRC DELEGATED CO-COMMISSIONING,STONECROFT MEDICAL CENTRE,38612408,4286.72,S12 2LJ
Department of Health,NHS Sheffield CCG,31/10/2021,Cont Care-Physical Disab (<65),CHC ADULT FULLY FUNDED,SUSASH GB LTD T/A EAGLE HOUSE,38480160,28782.47,S11 8NP
Department of Health,NHS Sheffield CCG,31/10/2021,Clinical&Medical-Independent Sector,MENTAL HEALTH CONTRACTS,SUSASH GB LTD T/A EAGLE HOUSE,38383254,30091.75,S11 8NP
Department of Health,NHS Sheffield CCG,31/10/2021,Course Fees,BEREAVEMENT SERVICE,TICE SEMINARS LTD T/A THE PACIFIC INSTITUTE,38573951,116400,W2 6BD
Department of Health,NHS Sheffield CCG,31/10/2021,C&M-GMS DES Minor Surgery,PRC DELEGATED CO-COMMISSIONING,TRAMWAYS MEDICAL CENTRE,38612419,3300,S6 4JQ
Department of Health,NHS Sheffield CCG,31/10/2021,C&M-GMS Global Sum,PRC DELEGATED CO-COMMISSIONING,TRAMWAYS MEDICAL CENTRE,38612419,66697.43,S6 4JQ
Department of Health,NHS Sheffield CCG,31/10/2021,C&M-GMS LONG COVID ES,PRC DELEGATED CO-COMMISSIONING,TRAMWAYS MEDICAL CENTRE,38612419,1377.97,S6 4JQ
Department of Health,NHS Sheffield CCG,31/10/2021,C&M-GMS PCN DES Participation,PRC DELEGATED CO-COMMISSIONING,TRAMWAYS MEDICAL CENTRE,38612419,1255.37,S6 4JQ
Department of Health,NHS Sheffield CCG,31/10/2021,C&M-GMS PCO Other,PRC DELEGATED CO-COMMISSIONING,TRAMWAYS MEDICAL CENTRE,38612419,527.2,S6 4JQ
Department of Health,NHS Sheffield CCG,31/10/2021,C&M-GMS Prem Cost Rent,PRC DELEGATED CO-COMMISSIONING,TRAMWAYS MEDICAL CENTRE,38612419,4012.75,S6 4JQ
Department of Health,NHS Sheffield CCG,31/10/2021,C&M-GMS Prem Rates,PRC DELEGATED CO-COMMISSIONING,TRAMWAYS MEDICAL CENTRE,38612419,823,S6 4JQ
Department of Health,NHS Sheffield CCG,31/10/2021,C&M-GMS Prem Water Rates,PRC DELEGATED CO-COMMISSIONING,TRAMWAYS MEDICAL CENTRE,38612419,258,S6 4JQ
Department of Health,NHS Sheffield CCG,31/10/2021,C&M-GMS QOF Aspiration,PRC DELEGATED CO-COMMISSIONING,TRAMWAYS MEDICAL CENTRE,38612419,6868.53,S6 4JQ
Department of Health,NHS Sheffield CCG,31/10/2021,C&M-GMS LES Equitable Funding,LOCAL ENHANCED SERVICES,UNIVERSITY HEALTH SERVICE,38411311,29008,S3 7QP
Department of Health,NHS Sheffield CCG,31/10/2021,C&M-PMS Contract Value,PRC DELEGATED CO-COMMISSIONING,UNIVERSITY HEALTH SERVICE,38407089,-24074.97,S3 7QP
Department of Health,NHS Sheffield CCG,31/10/2021,C&M-PMS GP Statutory Levy,PRC DELEGATED CO-COMMISSIONING,UNIVERSITY HEALTH SERVICE,38407089,-1390.62,S3 7QP
Department of Health,NHS Sheffield CCG,31/10/2021,C&M-PMS Out of Hours Opt Outs,PRC DELEGATED CO-COMMISSIONING,UNIVERSITY HEALTH SERVICE,38407089,-9566.75,S3 7QP
Department of Health,NHS Sheffield CCG,31/10/2021,C&M-PMS Contract Value,PRC DELEGATED CO-COMMISSIONING,UNIVERSITY HEALTH SERVICE,38426542,202981.57,S3 7QP
Department of Health,NHS Sheffield CCG,31/10/2021,C&M-PMS DES Extended Hours Access,PRC DELEGATED CO-COMMISSIONING,UNIVERSITY HEALTH SERVICE,38426542,4876.32,S3 7QP
Department of Health,NHS Sheffield CCG,31/10/2021,C&M-PMS LONG COVID ES,PRC DELEGATED CO-COMMISSIONING,UNIVERSITY HEALTH SERVICE,38426542,6700.43,S3 7QP
Department of Health,NHS Sheffield CCG,31/10/2021,C&M-PMS Out of Hours Opt Outs,PRC DELEGATED CO-COMMISSIONING,UNIVERSITY HEALTH SERVICE,38426542,1072.83,S3 7QP
Department of Health,NHS Sheffield CCG,31/10/2021,C&M-PMS PCN DES Clinical Director,PRC DELEGATED CO-COMMISSIONING,UNIVERSITY HEALTH SERVICE,38426542,2492.34,S3 7QP
Department of Health,NHS Sheffield CCG,31/10/2021,C&M-PMS PCN DES PCN support,PRC DELEGATED CO-COMMISSIONING,UNIVERSITY HEALTH SERVICE,38426542,5079.5,S3 7QP
Department of Health,NHS Sheffield CCG,31/10/2021,C&M-PMS PCN DES Participation,PRC DELEGATED CO-COMMISSIONING,UNIVERSITY HEALTH SERVICE,38426542,3676.64,S3 7QP
Department of Health,NHS Sheffield CCG,31/10/2021,C&M-PMS PCO Locum Sickness,PRC DELEGATED CO-COMMISSIONING,UNIVERSITY HEALTH SERVICE,38426542,12087.73,S3 7QP
Department of Health,NHS Sheffield CCG,31/10/2021,C&M-PMS Prem Notional Rent,PRC DELEGATED CO-COMMISSIONING,UNIVERSITY HEALTH SERVICE,38426542,15833.33,S3 7QP
Department of Health,NHS Sheffield CCG,31/10/2021,C&M-PMS QOF Aspiration,PRC DELEGATED CO-COMMISSIONING,UNIVERSITY HEALTH SERVICE,38426542,8048.38,S3 7QP
Department of Health,NHS Sheffield CCG,31/10/2021,C&M-GMS DES Learn Dsblty Hlth Chk,PRC DELEGATED CO-COMMISSIONING,UPPERTHORPE MEDICAL CENTRE,38612421,840,S6 3FT
Department of Health,NHS Sheffield CCG,31/10/2021,C&M-GMS DES Minor Surgery,PRC DELEGATED CO-COMMISSIONING,UPPERTHORPE MEDICAL CENTRE,38612421,575,S6 3FT
Department of Health,NHS Sheffield CCG,31/10/2021,C&M-GMS Global Sum,PRC DELEGATED CO-COMMISSIONING,UPPERTHORPE MEDICAL CENTRE,38612421,94702.87,S6 3FT
Department of Health,NHS Sheffield CCG,31/10/2021,C&M-GMS LONG COVID ES,PRC DELEGATED CO-COMMISSIONING,UPPERTHORPE MEDICAL CENTRE,38612421,2035.72,S6 3FT
Department of Health,NHS Sheffield CCG,31/10/2021,C&M-GMS PCN DES Participation,PRC DELEGATED CO-COMMISSIONING,UPPERTHORPE MEDICAL CENTRE,38612421,1770.85,S6 3FT
Department of Health,NHS Sheffield CCG,31/10/2021,C&M-GMS PCO Locum Adop/Pat/Mat,PRC DELEGATED CO-COMMISSIONING,UPPERTHORPE MEDICAL CENTRE,38612421,4626.84,S6 3FT
Department of Health,NHS Sheffield CCG,31/10/2021,C&M-GMS Prem Actual Rent,PRC DELEGATED CO-COMMISSIONING,UPPERTHORPE MEDICAL CENTRE,38612421,419.5,S6 3FT
Department of Health,NHS Sheffield CCG,31/10/2021,C&M-GMS Prem Notional Rent,PRC DELEGATED CO-COMMISSIONING,UPPERTHORPE MEDICAL CENTRE,38612421,2128.33,S6 3FT
Department of Health,NHS Sheffield CCG,31/10/2021,C&M-GMS Prem Rates,PRC DELEGATED CO-COMMISSIONING,UPPERTHORPE MEDICAL CENTRE,38612421,2121,S6 3FT
Department of Health,NHS Sheffield CCG,31/10/2021,C&M-GMS QOF Aspiration,PRC DELEGATED CO-COMMISSIONING,UPPERTHORPE MEDICAL CENTRE,38612421,10749.32,S6 3FT
Department of Health,NHS Sheffield CCG,31/10/2021,C&M-PMS Contract Value,PRC DELEGATED CO-COMMISSIONING,UPWELL STREET SURGERY,38426543,38222.36,S4 8AN
Department of Health,NHS Sheffield CCG,31/10/2021,C&M-PMS Funding Differential Review,PRC DELEGATED CO-COMMISSIONING,UPWELL STREET SURGERY,38426543,911.19,S4 8AN
Department of Health,NHS Sheffield CCG,31/10/2021,C&M-PMS LONG COVID ES,PRC DELEGATED CO-COMMISSIONING,UPWELL STREET SURGERY,38426543,764.92,S4 8AN
Department of Health,NHS Sheffield CCG,31/10/2021,C&M-PMS PCN DES Participation,PRC DELEGATED CO-COMMISSIONING,UPWELL STREET SURGERY,38426543,680.46,S4 8AN
Department of Health,NHS Sheffield CCG,31/10/2021,C&M-PMS PCO Other,PRC DELEGATED CO-COMMISSIONING,UPWELL STREET SURGERY,38426543,315.4,S4 8AN
Department of Health,NHS Sheffield CCG,31/10/2021,C&M-PMS Prem Notional Rent,PRC DELEGATED CO-COMMISSIONING,UPWELL STREET SURGERY,38426543,19665,S4 8AN
Department of Health,NHS Sheffield CCG,31/10/2021,C&M-PMS Prem Rates,PRC DELEGATED CO-COMMISSIONING,UPWELL STREET SURGERY,38426543,998,S4 8AN
Department of Health,NHS Sheffield CCG,31/10/2021,C&M-PMS QOF Aspiration,PRC DELEGATED CO-COMMISSIONING,UPWELL STREET SURGERY,38426543,4098.59,S4 8AN
Department of Health,NHS Sheffield CCG,31/10/2021,C&M-PMS Contract Value,PRC DELEGATED CO-COMMISSIONING,VALLEY MEDICAL CENTRE,38407091,-616.89,S36 1BX
Department of Health,NHS Sheffield CCG,31/10/2021,C&M-PMS GP Statutory Levy,PRC DELEGATED CO-COMMISSIONING,VALLEY MEDICAL CENTRE,38407091,-337.37,S36 1BX
Department of Health,NHS Sheffield CCG,31/10/2021,C&M-PMS Out of Hours Opt Outs,PRC DELEGATED CO-COMMISSIONING,VALLEY MEDICAL CENTRE,38407091,-3988.59,S36 1BX
Department of Health,NHS Sheffield CCG,31/10/2021,C&M-PMS PCN DES Clinical Director,PRC DELEGATED CO-COMMISSIONING,VALLEY MEDICAL CENTRE,38407091,-1259.35,S36 1BX
Department of Health,NHS Sheffield CCG,31/10/2021,C&M-PMS Contract Value,PRC DELEGATED CO-COMMISSIONING,VALLEY MEDICAL CENTRE,38426544,84709.93,S36 1BX
Department of Health,NHS Sheffield CCG,31/10/2021,C&M-PMS DES Extended Hours Access,PRC DELEGATED CO-COMMISSIONING,VALLEY MEDICAL CENTRE,38426544,2477.4,S36 1BX
Department of Health,NHS Sheffield CCG,31/10/2021,C&M-PMS DES Learn Dsblty Hlth Chk,PRC DELEGATED CO-COMMISSIONING,VALLEY MEDICAL CENTRE,38426544,280,S36 1BX
Department of Health,NHS Sheffield CCG,31/10/2021,C&M-PMS LONG COVID ES,PRC DELEGATED CO-COMMISSIONING,VALLEY MEDICAL CENTRE,38426544,1585.91,S36 1BX
Department of Health,NHS Sheffield CCG,31/10/2021,C&M-PMS Out of Hours Opt Outs,PRC DELEGATED CO-COMMISSIONING,VALLEY MEDICAL CENTRE,38426544,8.51,S36 1BX
Department of Health,NHS Sheffield CCG,31/10/2021,C&M-PMS PCN DES Clinical Director,PRC DELEGATED CO-COMMISSIONING,VALLEY MEDICAL CENTRE,38426544,1266.23,S36 1BX
Department of Health,NHS Sheffield CCG,31/10/2021,C&M-PMS PCN DES PCN support,PRC DELEGATED CO-COMMISSIONING,VALLEY MEDICAL CENTRE,38426544,2580.63,S36 1BX
Department of Health,NHS Sheffield CCG,31/10/2021,C&M-PMS PCN DES Participation,PRC DELEGATED CO-COMMISSIONING,VALLEY MEDICAL CENTRE,38426544,1524.87,S36 1BX
Department of Health,NHS Sheffield CCG,31/10/2021,C&M-PMS Prem Rates,PRC DELEGATED CO-COMMISSIONING,VALLEY MEDICAL CENTRE,38426544,657,S36 1BX
Department of Health,NHS Sheffield CCG,31/10/2021,C&M-PMS QOF Aspiration,PRC DELEGATED CO-COMMISSIONING,VALLEY MEDICAL CENTRE,38426544,9844.79,S36 1BX
Department of Health,NHS Sheffield CCG,31/10/2021,Cont Care-Physical Disab (<65),CHC ADULT FULLY FUNDED,VALORUM CARE LTD,38480162,36140.12,LS19 7RW
Department of Health,NHS Sheffield CCG,31/10/2021,C&M-GMS DES Minor Surgery,PRC DELEGATED CO-COMMISSIONING,WALKLEY HOUSE MEDICAL CENTRE,38612424,245,S6 3TN
Department of Health,NHS Sheffield CCG,31/10/2021,C&M-GMS Global Sum,PRC DELEGATED CO-COMMISSIONING,WALKLEY HOUSE MEDICAL CENTRE,38612424,94278.98,S6 3TN
Department of Health,NHS Sheffield CCG,31/10/2021,C&M-GMS LONG COVID ES,PRC DELEGATED CO-COMMISSIONING,WALKLEY HOUSE MEDICAL CENTRE,38612424,2025,S6 3TN
Department of Health,NHS Sheffield CCG,31/10/2021,C&M-GMS PCN DES Participation,PRC DELEGATED CO-COMMISSIONING,WALKLEY HOUSE MEDICAL CENTRE,38612424,1785.69,S6 3TN
Department of Health,NHS Sheffield CCG,31/10/2021,C&M-GMS PCO Locum Sickness,PRC DELEGATED CO-COMMISSIONING,WALKLEY HOUSE MEDICAL CENTRE,38612424,3863.3,S6 3TN
Department of Health,NHS Sheffield CCG,31/10/2021,C&M-GMS Prem Notional Rent,PRC DELEGATED CO-COMMISSIONING,WALKLEY HOUSE MEDICAL CENTRE,38612424,5806.96,S6 3TN
Department of Health,NHS Sheffield CCG,31/10/2021,C&M-GMS Prem Rates,PRC DELEGATED CO-COMMISSIONING,WALKLEY HOUSE MEDICAL CENTRE,38612424,1297,S6 3TN
Department of Health,NHS Sheffield CCG,31/10/2021,C&M-GMS QOF Aspiration,PRC DELEGATED CO-COMMISSIONING,WALKLEY HOUSE MEDICAL CENTRE,38612424,9792.91,S6 3TN
Department of Health,NHS Sheffield CCG,31/10/2021,C&M-GMS DES Learn Dsblty Hlth Chk,PRC DELEGATED CO-COMMISSIONING,WHITE HOUSE SURGERY SHEFFIELD,38612387,980,S2 1SL
Department of Health,NHS Sheffield CCG,31/10/2021,C&M-GMS Global Sum,PRC DELEGATED CO-COMMISSIONING,WHITE HOUSE SURGERY SHEFFIELD,38612387,58829.15,S2 1SL
Department of Health,NHS Sheffield CCG,31/10/2021,C&M-GMS LONG COVID ES,PRC DELEGATED CO-COMMISSIONING,WHITE HOUSE SURGERY SHEFFIELD,38612387,1133.77,S2 1SL
Department of Health,NHS Sheffield CCG,31/10/2021,C&M-GMS PCN DES Participation,PRC DELEGATED CO-COMMISSIONING,WHITE HOUSE SURGERY SHEFFIELD,38612387,1090.83,S2 1SL
Department of Health,NHS Sheffield CCG,31/10/2021,C&M-GMS Prem Notional Rent,PRC DELEGATED CO-COMMISSIONING,WHITE HOUSE SURGERY SHEFFIELD,38612387,9412.5,S2 1SL
Department of Health,NHS Sheffield CCG,31/10/2021,C&M-GMS Prem Rates,PRC DELEGATED CO-COMMISSIONING,WHITE HOUSE SURGERY SHEFFIELD,38612387,1632,S2 1SL
Department of Health,NHS Sheffield CCG,31/10/2021,C&M-GMS QOF Aspiration,PRC DELEGATED CO-COMMISSIONING,WHITE HOUSE SURGERY SHEFFIELD,38612387,6765.85,S2 1SL
Department of Health,NHS Sheffield CCG,31/10/2021,Cont Care-Physical Disab (<65),CHC ADULT FULLY FUNDED,WILLOWBECK HEALTH CARE LTD,38480145,200607.62,S4 8AR
Department of Health,NHS Sheffield CCG,31/10/2021,C&M-PMS Contract Value,PRC DELEGATED CO-COMMISSIONING,WINCOBANK MEDICAL CENTRE,38426485,66111.6,S9 1DJ
Department of Health,NHS Sheffield CCG,31/10/2021,C&M-PMS LONG COVID ES,PRC DELEGATED CO-COMMISSIONING,WINCOBANK MEDICAL CENTRE,38426485,1263.05,S9 1DJ
Department of Health,NHS Sheffield CCG,31/10/2021,C&M-PMS Out of Hours Opt Outs,PRC DELEGATED CO-COMMISSIONING,WINCOBANK MEDICAL CENTRE,38426485,14.65,S9 1DJ
Department of Health,NHS Sheffield CCG,31/10/2021,C&M-PMS PCN DES Participation,PRC DELEGATED CO-COMMISSIONING,WINCOBANK MEDICAL CENTRE,38426485,1191.11,S9 1DJ
Department of Health,NHS Sheffield CCG,31/10/2021,C&M-PMS Prem Healthcentre Rent,PRC DELEGATED CO-COMMISSIONING,WINCOBANK MEDICAL CENTRE,38426485,47262.38,S9 1DJ
Department of Health,NHS Sheffield CCG,31/10/2021,C&M-PMS QOF Aspiration,PRC DELEGATED CO-COMMISSIONING,WINCOBANK MEDICAL CENTRE,38426485,6971.47,S9 1DJ
Department of Health,NHS Sheffield CCG,31/10/2021,C&M-PMS Contract Value,PRC DELEGATED CO-COMMISSIONING,WOODHOUSE HEALTH CENTRE,38426491,103951.25,S13 7LY
Department of Health,NHS Sheffield CCG,31/10/2021,C&M-PMS Funding Differential Review,PRC DELEGATED CO-COMMISSIONING,WOODHOUSE HEALTH CENTRE,38426491,2095.91,S13 7LY
Department of Health,NHS Sheffield CCG,31/10/2021,C&M-PMS LONG COVID ES,PRC DELEGATED CO-COMMISSIONING,WOODHOUSE HEALTH CENTRE,38426491,2004.72,S13 7LY
Department of Health,NHS Sheffield CCG,31/10/2021,C&M-PMS Out of Hours Opt Outs,PRC DELEGATED CO-COMMISSIONING,WOODHOUSE HEALTH CENTRE,38426491,49.87,S13 7LY
Department of Health,NHS Sheffield CCG,31/10/2021,C&M-PMS PCN DES Participation,PRC DELEGATED CO-COMMISSIONING,WOODHOUSE HEALTH CENTRE,38426491,1880.78,S13 7LY
Department of Health,NHS Sheffield CCG,31/10/2021,C&M-PMS PCO Locum Adop/Pat/Mat,PRC DELEGATED CO-COMMISSIONING,WOODHOUSE HEALTH CENTRE,38426491,1143.06,S13 7LY
Department of Health,NHS Sheffield CCG,31/10/2021,C&M-PMS PCO Other,PRC DELEGATED CO-COMMISSIONING,WOODHOUSE HEALTH CENTRE,38426491,743.9,S13 7LY
Department of Health,NHS Sheffield CCG,31/10/2021,C&M-PMS Prem Notional Rent,PRC DELEGATED CO-COMMISSIONING,WOODHOUSE HEALTH CENTRE,38426491,6338.58,S13 7LY
Department of Health,NHS Sheffield CCG,31/10/2021,C&M-PMS Prem Rates,PRC DELEGATED CO-COMMISSIONING,WOODHOUSE HEALTH CENTRE,38426491,1459,S13 7LY
Department of Health,NHS Sheffield CCG,31/10/2021,C&M-PMS QOF Aspiration,PRC DELEGATED CO-COMMISSIONING,WOODHOUSE HEALTH CENTRE,38426491,15023.58,S13 7LY
Department of Health,NHS Sheffield CCG,31/10/2021,C&M-PMS Contract Value,PRC DELEGATED CO-COMMISSIONING,WOODSEATS MEDICAL CENTRE,38408756,-434.23,S8 0SH
Department of Health,NHS Sheffield CCG,31/10/2021,C&M-PMS GP Statutory Levy,PRC DELEGATED CO-COMMISSIONING,WOODSEATS MEDICAL CENTRE,38408756,-385.42,S8 0SH
Department of Health,NHS Sheffield CCG,31/10/2021,C&M-PMS Out of Hours Opt Outs,PRC DELEGATED CO-COMMISSIONING,WOODSEATS MEDICAL CENTRE,38408756,-4070.76,S8 0SH
Department of Health,NHS Sheffield CCG,31/10/2021,C&M-PMS Contract Value,PRC DELEGATED CO-COMMISSIONING,WOODSEATS MEDICAL CENTRE,38426499,86403.64,S8 0SH
Department of Health,NHS Sheffield CCG,31/10/2021,C&M-PMS DES Learn Dsblty Hlth Chk,PRC DELEGATED CO-COMMISSIONING,WOODSEATS MEDICAL CENTRE,38426499,1120,S8 0SH
Department of Health,NHS Sheffield CCG,31/10/2021,C&M-PMS LONG COVID ES,PRC DELEGATED CO-COMMISSIONING,WOODSEATS MEDICAL CENTRE,38426499,1772.23,S8 0SH
Department of Health,NHS Sheffield CCG,31/10/2021,C&M-PMS PCN DES Participation,PRC DELEGATED CO-COMMISSIONING,WOODSEATS MEDICAL CENTRE,38426499,1531.95,S8 0SH
Department of Health,NHS Sheffield CCG,31/10/2021,C&M-PMS PCO Locum Adop/Pat/Mat,PRC DELEGATED CO-COMMISSIONING,WOODSEATS MEDICAL CENTRE,38426499,8401.41,S8 0SH
Department of Health,NHS Sheffield CCG,31/10/2021,C&M-PMS PCO Locum Sickness,PRC DELEGATED CO-COMMISSIONING,WOODSEATS MEDICAL CENTRE,38426499,5141.98,S8 0SH
Department of Health,NHS Sheffield CCG,31/10/2021,C&M-PMS PCO Other,PRC DELEGATED CO-COMMISSIONING,WOODSEATS MEDICAL CENTRE,38426499,654.9,S8 0SH
Department of Health,NHS Sheffield CCG,31/10/2021,C&M-PMS Prem Notional Rent,PRC DELEGATED CO-COMMISSIONING,WOODSEATS MEDICAL CENTRE,38426499,11666.67,S8 0SH
Department of Health,NHS Sheffield CCG,31/10/2021,C&M-PMS Prem Rates,PRC DELEGATED CO-COMMISSIONING,WOODSEATS MEDICAL CENTRE,38426499,2611,S8 0SH
Department of Health,NHS Sheffield CCG,31/10/2021,C&M-PMS QOF Aspiration,PRC DELEGATED CO-COMMISSIONING,WOODSEATS MEDICAL CENTRE,38426499,10133.24,S8 0SH
Department of Health,NHS Sheffield CCG,31/10/2021,Participation Fees,BEREAVEMENT SERVICE,YORKSHIRE & HUMBER AHSN LTD,38631082,79761.6,WF4 3BA
Department of Health,NHS Sheffield CCG,31/10/2021,Hcare Srv Rec NHS Trust-Contract Baseline,AMBULANCE SERVICES,YORKSHIRE AMBULANCE SERVICE NHS TRUST,38467806,2722240,WF2 0XQ
